{"text_format":"3","workbook":"xlsx","n_sheets":4,"sheets":["סיכום תקציב מתחילת השנה עד היום","סיכום הוצאות חודשיות","הוצאות מפורטות","צדקה וחסויות"],"not_rendered":{"images":1,"defined_names":15},"read":"whole","date_system":"1900"}

{"sheet":"סיכום תקציב מתחילת השנה עד היום","index":0,"n_rows":16,"n_cols":7,"rows_kept":16,"merged":[[1,1,1,4]]}
[]
[null,"בפועל לעומת תקציב מתחילת השנה",{"$nulls":3},"שנה",{"$f":"YEAR(TODAY())","v":2019}]
[null,"קוד בספר ראשי","כותרת חשבון","בפועל","תקציב","סכום שנותר ₪","אחוזים שנותרו"]
[null,1000,"פרסום",{"$f":"SUMIF(סיכום_הוצאות_חודשיות[קוד בספר ראשי],טבלה_מתחילת_השנה_עד_היום[[#This Row],[קוד בספר ראשי]],סיכום_הוצאות_חודשיות[סה\"כ])","v":{"v":0,"d":"₪ 0.00"}},{"v":100000,"d":"₪ 100,000.00"},{"$f":"IF(טבלה_מתחילת_השנה_עד_היום[[#This Row],[תקציב]]=\"\",\"\",טבלה_מתחילת_השנה_עד_היום[[#This Row],[תקציב]]-טבלה_מתחילת_השנה_עד_היום[[#This Row],[בפועל]])","v":{"v":100000,"d":"₪ 100,000.00"}},{"$f":"IFERROR(טבלה_מתחילת_השנה_עד_היום[[#This Row],[סכום שנותר ₪]]/טבלה_מתחילת_השנה_עד_היום[[#This Row],[תקציב]],\"\")","v":{"v":1,"d":"100.00%"}}]
[null,2000,"ציוד משרדי",{"$f":"SUMIF(סיכום_הוצאות_חודשיות[קוד בספר ראשי],טבלה_מתחילת_השנה_עד_היום[[#This Row],[קוד בספר ראשי]],סיכום_הוצאות_חודשיות[סה\"כ])","v":{"v":0,"d":"₪ 0.00"}},{"v":100000,"d":"₪ 100,000.00"},{"$f":"IF(טבלה_מתחילת_השנה_עד_היום[[#This Row],[תקציב]]=\"\",\"\",טבלה_מתחילת_השנה_עד_היום[[#This Row],[תקציב]]-טבלה_מתחילת_השנה_עד_היום[[#This Row],[בפועל]])","v":{"v":100000,"d":"₪ 100,000.00"}},{"$f":"IFERROR(טבלה_מתחילת_השנה_עד_היום[[#This Row],[סכום שנותר ₪]]/טבלה_מתחילת_השנה_עד_היום[[#This Row],[תקציב]],\"\")","v":{"v":1,"d":"100.00%"}}]
[null,3000,"מדפסות",{"$f":"SUMIF(סיכום_הוצאות_חודשיות[קוד בספר ראשי],טבלה_מתחילת_השנה_עד_היום[[#This Row],[קוד בספר ראשי]],סיכום_הוצאות_חודשיות[סה\"כ])","v":{"v":0,"d":"₪ 0.00"}},{"v":100000,"d":"₪ 100,000.00"},{"$f":"IF(טבלה_מתחילת_השנה_עד_היום[[#This Row],[תקציב]]=\"\",\"\",טבלה_מתחילת_השנה_עד_היום[[#This Row],[תקציב]]-טבלה_מתחילת_השנה_עד_היום[[#This Row],[בפועל]])","v":{"v":100000,"d":"₪ 100,000.00"}},{"$f":"IFERROR(טבלה_מתחילת_השנה_עד_היום[[#This Row],[סכום שנותר ₪]]/טבלה_מתחילת_השנה_עד_היום[[#This Row],[תקציב]],\"\")","v":{"v":1,"d":"100.00%"}}]
[null,4000,"עלויות שרתים",{"$f":"SUMIF(סיכום_הוצאות_חודשיות[קוד בספר ראשי],טבלה_מתחילת_השנה_עד_היום[[#This Row],[קוד בספר ראשי]],סיכום_הוצאות_חודשיות[סה\"כ])","v":{"v":0,"d":"₪ 0.00"}},{"v":100000,"d":"₪ 100,000.00"},{"$f":"IF(טבלה_מתחילת_השנה_עד_היום[[#This Row],[תקציב]]=\"\",\"\",טבלה_מתחילת_השנה_עד_היום[[#This Row],[תקציב]]-טבלה_מתחילת_השנה_עד_היום[[#This Row],[בפועל]])","v":{"v":100000,"d":"₪ 100,000.00"}},{"$f":"IFERROR(טבלה_מתחילת_השנה_עד_היום[[#This Row],[סכום שנותר ₪]]/טבלה_מתחילת_השנה_עד_היום[[#This Row],[תקציב]],\"\")","v":{"v":1,"d":"100.00%"}}]
[null,5000,"ציוד",{"$f":"SUMIF(סיכום_הוצאות_חודשיות[קוד בספר ראשי],טבלה_מתחילת_השנה_עד_היום[[#This Row],[קוד בספר ראשי]],סיכום_הוצאות_חודשיות[סה\"כ])","v":{"v":0,"d":"₪ 0.00"}},{"v":50000,"d":"₪ 50,000.00"},{"$f":"IF(טבלה_מתחילת_השנה_עד_היום[[#This Row],[תקציב]]=\"\",\"\",טבלה_מתחילת_השנה_עד_היום[[#This Row],[תקציב]]-טבלה_מתחילת_השנה_עד_היום[[#This Row],[בפועל]])","v":{"v":50000,"d":"₪ 50,000.00"}},{"$f":"IFERROR(טבלה_מתחילת_השנה_עד_היום[[#This Row],[סכום שנותר ₪]]/טבלה_מתחילת_השנה_עד_היום[[#This Row],[תקציב]],\"\")","v":{"v":1,"d":"100.00%"}}]
[null,6000,"הוצאות לקוח",{"$f":"SUMIF(סיכום_הוצאות_חודשיות[קוד בספר ראשי],טבלה_מתחילת_השנה_עד_היום[[#This Row],[קוד בספר ראשי]],סיכום_הוצאות_חודשיות[סה\"כ])","v":{"v":0,"d":"₪ 0.00"}},{"v":25000,"d":"₪ 25,000.00"},{"$f":"IF(טבלה_מתחילת_השנה_עד_היום[[#This Row],[תקציב]]=\"\",\"\",טבלה_מתחילת_השנה_עד_היום[[#This Row],[תקציב]]-טבלה_מתחילת_השנה_עד_היום[[#This Row],[בפועל]])","v":{"v":25000,"d":"₪ 25,000.00"}},{"$f":"IFERROR(טבלה_מתחילת_השנה_עד_היום[[#This Row],[סכום שנותר ₪]]/טבלה_מתחילת_השנה_עד_היום[[#This Row],[תקציב]],\"\")","v":{"v":1,"d":"100.00%"}}]
[null,7000,"מחשבים",{"$f":"SUMIF(סיכום_הוצאות_חודשיות[קוד בספר ראשי],טבלה_מתחילת_השנה_עד_היום[[#This Row],[קוד בספר ראשי]],סיכום_הוצאות_חודשיות[סה\"כ])","v":{"v":0,"d":"₪ 0.00"}},{"v":75000,"d":"₪ 75,000.00"},{"$f":"IF(טבלה_מתחילת_השנה_עד_היום[[#This Row],[תקציב]]=\"\",\"\",טבלה_מתחילת_השנה_עד_היום[[#This Row],[תקציב]]-טבלה_מתחילת_השנה_עד_היום[[#This Row],[בפועל]])","v":{"v":75000,"d":"₪ 75,000.00"}},{"$f":"IFERROR(טבלה_מתחילת_השנה_עד_היום[[#This Row],[סכום שנותר ₪]]/טבלה_מתחילת_השנה_עד_היום[[#This Row],[תקציב]],\"\")","v":{"v":1,"d":"100.00%"}}]
[null,8000,"ביטוח רפואי",{"$f":"SUMIF(סיכום_הוצאות_חודשיות[קוד בספר ראשי],טבלה_מתחילת_השנה_עד_היום[[#This Row],[קוד בספר ראשי]],סיכום_הוצאות_חודשיות[סה\"כ])","v":{"v":0,"d":"₪ 0.00"}},{"v":65000,"d":"₪ 65,000.00"},{"$f":"IF(טבלה_מתחילת_השנה_עד_היום[[#This Row],[תקציב]]=\"\",\"\",טבלה_מתחילת_השנה_עד_היום[[#This Row],[תקציב]]-טבלה_מתחילת_השנה_עד_היום[[#This Row],[בפועל]])","v":{"v":65000,"d":"₪ 65,000.00"}},{"$f":"IFERROR(טבלה_מתחילת_השנה_עד_היום[[#This Row],[סכום שנותר ₪]]/טבלה_מתחילת_השנה_עד_היום[[#This Row],[תקציב]],\"\")","v":{"v":1,"d":"100.00%"}}]
[null,9000,"עלויות בניין",{"$f":"SUMIF(סיכום_הוצאות_חודשיות[קוד בספר ראשי],טבלה_מתחילת_השנה_עד_היום[[#This Row],[קוד בספר ראשי]],סיכום_הוצאות_חודשיות[סה\"כ])","v":{"v":0,"d":"₪ 0.00"}},{"v":125000,"d":"₪ 125,000.00"},{"$f":"IF(טבלה_מתחילת_השנה_עד_היום[[#This Row],[תקציב]]=\"\",\"\",טבלה_מתחילת_השנה_עד_היום[[#This Row],[תקציב]]-טבלה_מתחילת_השנה_עד_היום[[#This Row],[בפועל]])","v":{"v":125000,"d":"₪ 125,000.00"}},{"$f":"IFERROR(טבלה_מתחילת_השנה_עד_היום[[#This Row],[סכום שנותר ₪]]/טבלה_מתחילת_השנה_עד_היום[[#This Row],[תקציב]],\"\")","v":{"v":1,"d":"100.00%"}}]
[null,10000,"שיווק",{"$f":"SUMIF(סיכום_הוצאות_חודשיות[קוד בספר ראשי],טבלה_מתחילת_השנה_עד_היום[[#This Row],[קוד בספר ראשי]],סיכום_הוצאות_חודשיות[סה\"כ])","v":{"v":0,"d":"₪ 0.00"}},{"v":100000,"d":"₪ 100,000.00"},{"$f":"IF(טבלה_מתחילת_השנה_עד_היום[[#This Row],[תקציב]]=\"\",\"\",טבלה_מתחילת_השנה_עד_היום[[#This Row],[תקציב]]-טבלה_מתחילת_השנה_עד_היום[[#This Row],[בפועל]])","v":{"v":100000,"d":"₪ 100,000.00"}},{"$f":"IFERROR(טבלה_מתחילת_השנה_עד_היום[[#This Row],[סכום שנותר ₪]]/טבלה_מתחילת_השנה_עד_היום[[#This Row],[תקציב]],\"\")","v":{"v":1,"d":"100.00%"}}]
[null,11000,"צדקה",{"$f":"SUMIF(סיכום_הוצאות_חודשיות[קוד בספר ראשי],טבלה_מתחילת_השנה_עד_היום[[#This Row],[קוד בספר ראשי]],סיכום_הוצאות_חודשיות[סה\"כ])","v":{"v":0,"d":"₪ 0.00"}},{"v":250000,"d":"₪ 250,000.00"},{"$f":"IF(טבלה_מתחילת_השנה_עד_היום[[#This Row],[תקציב]]=\"\",\"\",טבלה_מתחילת_השנה_עד_היום[[#This Row],[תקציב]]-טבלה_מתחילת_השנה_עד_היום[[#This Row],[בפועל]])","v":{"v":250000,"d":"₪ 250,000.00"}},{"$f":"IFERROR(טבלה_מתחילת_השנה_עד_היום[[#This Row],[סכום שנותר ₪]]/טבלה_מתחילת_השנה_עד_היום[[#This Row],[תקציב]],\"\")","v":{"v":1,"d":"100.00%"}}]
[null,12000,"חסויות",{"$f":"SUMIF(סיכום_הוצאות_חודשיות[קוד בספר ראשי],טבלה_מתחילת_השנה_עד_היום[[#This Row],[קוד בספר ראשי]],סיכום_הוצאות_חודשיות[סה\"כ])","v":{"v":0,"d":"₪ 0.00"}},{"v":50000,"d":"₪ 50,000.00"},{"$f":"IF(טבלה_מתחילת_השנה_עד_היום[[#This Row],[תקציב]]=\"\",\"\",טבלה_מתחילת_השנה_עד_היום[[#This Row],[תקציב]]-טבלה_מתחילת_השנה_עד_היום[[#This Row],[בפועל]])","v":{"v":50000,"d":"₪ 50,000.00"}},{"$f":"IFERROR(טבלה_מתחילת_השנה_עד_היום[[#This Row],[סכום שנותר ₪]]/טבלה_מתחילת_השנה_עד_היום[[#This Row],[תקציב]],\"\")","v":{"v":1,"d":"100.00%"}}]
[null,"סה\"כ",null,{"$f":"SUBTOTAL(109,טבלה_מתחילת_השנה_עד_היום[בפועל])","v":{"v":0,"d":"₪ 0.00"}},{"$f":"SUBTOTAL(109,טבלה_מתחילת_השנה_עד_היום[תקציב])","v":{"v":1140000,"d":"₪ 1,140,000.00"}},{"$f":"SUBTOTAL(109,טבלה_מתחילת_השנה_עד_היום[סכום שנותר ₪])","v":{"v":1140000,"d":"₪ 1,140,000.00"}},{"$f":"טבלה_מתחילת_השנה_עד_היום[[#Totals],[סכום שנותר ₪]]/טבלה_מתחילת_השנה_עד_היום[[#Totals],[תקציב]]","v":{"v":1,"d":"100.00%"}}]

{"sheet":"סיכום הוצאות חודשיות","index":1,"n_rows":18,"n_cols":17,"rows_kept":18,"merged":[[1,1,1,16]]}
[]
[null,"סיכום הוצאות חודשיות"]
[null,"כלי פריסה לסינון נתונים לפי כותרות חשבון מופיע בתא זה.",null,{"$f":"DATEVALUE(\"1 ינואר \"&_שנה)","v":{"v":43466,"d":"4346600.00%"}},{"$f":"DATEVALUE(\"1 פברואר \"&_שנה)","v":{"v":43497,"d":"4349700.00%"}},{"$f":"DATEVALUE(\"1 מרץ \"&_שנה)","v":{"v":43525,"d":"4352500.00%"}},{"$f":"DATEVALUE(\"1 אפר \"&_שנה)","v":{"v":43556,"d":"4355600.00%"}},{"$f":"DATEVALUE(\"1 מאי \"&_שנה)","v":{"v":43586,"d":"4358600.00%"}},{"$f":"DATEVALUE(\"1 יונ \"&_שנה)","v":{"v":43617,"d":"4361700.00%"}},{"$f":"DATEVALUE(\"1 יולי \"&_שנה)","v":{"v":43647,"d":"4364700.00%"}},{"$f":"DATEVALUE(\"1 אוגוסט \"&_שנה)","v":{"v":43678,"d":"4367800.00%"}},{"$f":"DATEVALUE(\"1 ספטמבר \"&_שנה)","v":{"v":43709,"d":"4370900.00%"}},{"$f":"DATEVALUE(\"1 אוקטובר \"&_שנה)","v":{"v":43739,"d":"4373900.00%"}},{"$f":"DATEVALUE(\"1 נובמבר \"&_שנה)","v":{"v":43770,"d":"4377000.00%"}},{"$f":"DATEVALUE(\"1 דצמבר \"&_שנה)","v":{"v":43800,"d":"4380000.00%"}}]
[{"$nulls":3},{"$f":"EOMONTH(D3,0)","v":{"v":43496,"d":"4349600.00%"}},{"$f":"EOMONTH(E3,0)","v":{"v":43524,"d":"4352400.00%"}},{"$f":"EOMONTH(F3,0)","v":{"v":43555,"d":"4355500.00%"}},{"$f":"EOMONTH(G3,0)","v":{"v":43585,"d":"4358500.00%"}},{"$f":"EOMONTH(H3,0)","v":{"v":43616,"d":"4361600.00%"}},{"$f":"EOMONTH(I3,0)","v":{"v":43646,"d":"4364600.00%"}},{"v":43677,"d":"4367700.00%"},{"v":43708,"d":"4370800.00%"},{"v":43738,"d":"4373800.00%"},{"v":43769,"d":"4376900.00%"},{"v":43799,"d":"4379900.00%"},{"v":43830,"d":"4383000.00%"}]
[null,"קוד בספר ראשי","כותרת חשבון","ינואר","פברואר","מרץ","אפר","מאי","יונ","יולי","אוגוסט","ספטמבר","אוקטובר","נובמבר","דצמבר","סה\"כ"," "]
[null,1000,"פרסום",{"$f":"SUMIFS(הוצאות_מפורטות[סכום שיק],הוצאות_מפורטות[קוד בספר ראשי],סיכום_הוצאות_חודשיות[[#This Row],[קוד בספר ראשי]],הוצאות_מפורטות[תאריך חשבונית],\">=\"&D$3,הוצאות_מפורטות[תאריך חשבונית],\"<=\"&D$4)+SUMIFS(אחר[סכום שיק],אחר[קוד בספר ראשי],סיכום_הוצאות_חודשיות[[#This Row],[קוד בספר ראשי]],אחר[תאריך הגשת הבקשה לשיק],\">=\"&DATEVALUE(\"1 \"&סיכום_הוצאות_חודשיות[[#Headers],[ינואר]]&\" \"&_שנה),אחר[תאריך הגשת הבקשה לשיק],\"<=\"&D$4)","v":{"v":0,"d":"₪ 0.00"}},{"$f":"SUMIFS(הוצאות_מפורטות[סכום שיק],הוצאות_מפורטות[קוד בספר ראשי],סיכום_הוצאות_חודשיות[[#This Row],[קוד בספר ראשי]],הוצאות_מפורטות[תאריך חשבונית],\">=\"&E$3,הוצאות_מפורטות[תאריך חשבונית],\"<=\"&E$4)+SUMIFS(אחר[סכום שיק],אחר[קוד בספר ראשי],סיכום_הוצאות_חודשיות[[#This Row],[קוד בספר ראשי]],אחר[תאריך הגשת הבקשה לשיק],\">=\"&DATEVALUE(\"1 \"&סיכום_הוצאות_חודשיות[[#Headers],[פברואר]]&\" \"&_שנה),אחר[תאריך הגשת הבקשה לשיק],\"<=\"&E$4)","v":{"v":0,"d":"₪ 0.00"}},{"$f":"SUMIFS(הוצאות_מפורטות[סכום שיק],הוצאות_מפורטות[קוד בספר ראשי],סיכום_הוצאות_חודשיות[[#This Row],[קוד בספר ראשי]],הוצאות_מפורטות[תאריך חשבונית],\">=\"&F$3,הוצאות_מפורטות[תאריך חשבונית],\"<=\"&F$4)+SUMIFS(אחר[סכום שיק],אחר[קוד בספר ראשי],סיכום_הוצאות_חודשיות[[#This Row],[קוד בספר ראשי]],אחר[תאריך הגשת הבקשה לשיק],\">=\"&DATEVALUE(\"1 \"&סיכום_הוצאות_חודשיות[[#Headers],[מרץ]]&\" \"&_שנה),אחר[תאריך הגשת הבקשה לשיק],\"<=\"&F$4)","v":{"v":0,"d":"₪ 0.00"}},{"$f":"SUMIFS(הוצאות_מפורטות[סכום שיק],הוצאות_מפורטות[קוד בספר ראשי],סיכום_הוצאות_חודשיות[[#This Row],[קוד בספר ראשי]],הוצאות_מפורטות[תאריך חשבונית],\">=\"&G$3,הוצאות_מפורטות[תאריך חשבונית],\"<=\"&G$4)+SUMIFS(אחר[סכום שיק],אחר[קוד בספר ראשי],סיכום_הוצאות_חודשיות[[#This Row],[קוד בספר ראשי]],אחר[תאריך הגשת הבקשה לשיק],\">=\"&DATEVALUE(\"1 \"&סיכום_הוצאות_חודשיות[[#Headers],[אפר]]&\" \"&_שנה),אחר[תאריך הגשת הבקשה לשיק],\"<=\"&G$4)","v":{"v":0,"d":"₪ 0.00"}},{"$f":"SUMIFS(הוצאות_מפורטות[סכום שיק],הוצאות_מפורטות[קוד בספר ראשי],סיכום_הוצאות_חודשיות[[#This Row],[קוד בספר ראשי]],הוצאות_מפורטות[תאריך חשבונית],\">=\"&H$3,הוצאות_מפורטות[תאריך חשבונית],\"<=\"&H$4)+SUMIFS(אחר[סכום שיק],אחר[קוד בספר ראשי],סיכום_הוצאות_חודשיות[[#This Row],[קוד בספר ראשי]],אחר[תאריך הגשת הבקשה לשיק],\">=\"&DATEVALUE(\"1 \"&סיכום_הוצאות_חודשיות[[#Headers],[מאי]]&\" \"&_שנה),אחר[תאריך הגשת הבקשה לשיק],\"<=\"&H$4)","v":{"v":0,"d":"₪ 0.00"}},{"$f":"SUMIFS(הוצאות_מפורטות[סכום שיק],הוצאות_מפורטות[קוד בספר ראשי],סיכום_הוצאות_חודשיות[[#This Row],[קוד בספר ראשי]],הוצאות_מפורטות[תאריך חשבונית],\">=\"&I$3,הוצאות_מפורטות[תאריך חשבונית],\"<=\"&I$4)+SUMIFS(אחר[סכום שיק],אחר[קוד בספר ראשי],סיכום_הוצאות_חודשיות[[#This Row],[קוד בספר ראשי]],אחר[תאריך הגשת הבקשה לשיק],\">=\"&DATEVALUE(\"1 \"&סיכום_הוצאות_חודשיות[[#Headers],[יונ]]&\" \"&_שנה),אחר[תאריך הגשת הבקשה לשיק],\"<=\"&I$4)","v":{"v":0,"d":"₪ 0.00"}},{"$f":"SUMIFS(הוצאות_מפורטות[סכום שיק],הוצאות_מפורטות[קוד בספר ראשי],סיכום_הוצאות_חודשיות[[#This Row],[קוד בספר ראשי]],הוצאות_מפורטות[תאריך חשבונית],\">=\"&J$3,הוצאות_מפורטות[תאריך חשבונית],\"<=\"&J$4)+SUMIFS(אחר[סכום שיק],אחר[קוד בספר ראשי],סיכום_הוצאות_חודשיות[[#This Row],[קוד בספר ראשי]],אחר[תאריך הגשת הבקשה לשיק],\">=\"&DATEVALUE(\"1 \"&סיכום_הוצאות_חודשיות[[#Headers],[יולי]]&\" \"&_שנה),אחר[תאריך הגשת הבקשה לשיק],\"<=\"&J$4)","v":{"v":0,"d":"₪ 0.00"}},{"$f":"SUMIFS(הוצאות_מפורטות[סכום שיק],הוצאות_מפורטות[קוד בספר ראשי],סיכום_הוצאות_חודשיות[[#This Row],[קוד בספר ראשי]],הוצאות_מפורטות[תאריך חשבונית],\">=\"&K$3,הוצאות_מפורטות[תאריך חשבונית],\"<=\"&K$4)+SUMIFS(אחר[סכום שיק],אחר[קוד בספר ראשי],סיכום_הוצאות_חודשיות[[#This Row],[קוד בספר ראשי]],אחר[תאריך הגשת הבקשה לשיק],\">=\"&DATEVALUE(\"1 \"&סיכום_הוצאות_חודשיות[[#Headers],[אוגוסט]]&\" \"&_שנה),אחר[תאריך הגשת הבקשה לשיק],\"<=\"&K$4)","v":{"v":0,"d":"₪ 0.00"}},{"$f":"SUMIFS(הוצאות_מפורטות[סכום שיק],הוצאות_מפורטות[קוד בספר ראשי],סיכום_הוצאות_חודשיות[[#This Row],[קוד בספר ראשי]],הוצאות_מפורטות[תאריך חשבונית],\">=\"&L$3,הוצאות_מפורטות[תאריך חשבונית],\"<=\"&L$4)+SUMIFS(אחר[סכום שיק],אחר[קוד בספר ראשי],סיכום_הוצאות_חודשיות[[#This Row],[קוד בספר ראשי]],אחר[תאריך הגשת הבקשה לשיק],\">=\"&DATEVALUE(\"1 \"&סיכום_הוצאות_חודשיות[[#Headers],[ספטמבר]]&\" \"&_שנה),אחר[תאריך הגשת הבקשה לשיק],\"<=\"&L$4)","v":{"v":0,"d":"₪ 0.00"}},{"$f":"SUMIFS(הוצאות_מפורטות[סכום שיק],הוצאות_מפורטות[קוד בספר ראשי],סיכום_הוצאות_חודשיות[[#This Row],[קוד בספר ראשי]],הוצאות_מפורטות[תאריך חשבונית],\">=\"&M$3,הוצאות_מפורטות[תאריך חשבונית],\"<=\"&M$4)+SUMIFS(אחר[סכום שיק],אחר[קוד בספר ראשי],סיכום_הוצאות_חודשיות[[#This Row],[קוד בספר ראשי]],אחר[תאריך הגשת הבקשה לשיק],\">=\"&DATEVALUE(\"1 \"&סיכום_הוצאות_חודשיות[[#Headers],[אוקטובר]]&\" \"&_שנה),אחר[תאריך הגשת הבקשה לשיק],\"<=\"&M$4)","v":{"v":0,"d":"₪ 0.00"}},{"$f":"SUMIFS(הוצאות_מפורטות[סכום שיק],הוצאות_מפורטות[קוד בספר ראשי],סיכום_הוצאות_חודשיות[[#This Row],[קוד בספר ראשי]],הוצאות_מפורטות[תאריך חשבונית],\">=\"&N$3,הוצאות_מפורטות[תאריך חשבונית],\"<=\"&N$4)+SUMIFS(אחר[סכום שיק],אחר[קוד בספר ראשי],סיכום_הוצאות_חודשיות[[#This Row],[קוד בספר ראשי]],אחר[תאריך הגשת הבקשה לשיק],\">=\"&DATEVALUE(\"1 \"&סיכום_הוצאות_חודשיות[[#Headers],[נובמבר]]&\" \"&_שנה),אחר[תאריך הגשת הבקשה לשיק],\"<=\"&N$4)","v":{"v":0,"d":"₪ 0.00"}},{"$f":"SUMIFS(הוצאות_מפורטות[סכום שיק],הוצאות_מפורטות[קוד בספר ראשי],סיכום_הוצאות_חודשיות[[#This Row],[קוד בספר ראשי]],הוצאות_מפורטות[תאריך חשבונית],\">=\"&O$3,הוצאות_מפורטות[תאריך חשבונית],\"<=\"&O$4)+SUMIFS(אחר[סכום שיק],אחר[קוד בספר ראשי],סיכום_הוצאות_חודשיות[[#This Row],[קוד בספר ראשי]],אחר[תאריך הגשת הבקשה לשיק],\">=\"&DATEVALUE(\"1 \"&סיכום_הוצאות_חודשיות[[#Headers],[דצמבר]]&\" \"&_שנה),אחר[תאריך הגשת הבקשה לשיק],\"<=\"&O$4)","v":{"v":0,"d":"₪ 0.00"}},{"$f":"SUM(סיכום_הוצאות_חודשיות[[#This Row],[ינואר]:[דצמבר]])","v":{"v":0,"d":"₪ 0.00"}}]
[null,2000,"ציוד משרדי",{"$f":"SUMIFS(הוצאות_מפורטות[סכום שיק],הוצאות_מפורטות[קוד בספר ראשי],סיכום_הוצאות_חודשיות[[#This Row],[קוד בספר ראשי]],הוצאות_מפורטות[תאריך חשבונית],\">=\"&D$3,הוצאות_מפורטות[תאריך חשבונית],\"<=\"&D$4)+SUMIFS(אחר[סכום שיק],אחר[קוד בספר ראשי],סיכום_הוצאות_חודשיות[[#This Row],[קוד בספר ראשי]],אחר[תאריך הגשת הבקשה לשיק],\">=\"&DATEVALUE(\"1 \"&סיכום_הוצאות_חודשיות[[#Headers],[ינואר]]&\" \"&_שנה),אחר[תאריך הגשת הבקשה לשיק],\"<=\"&D$4)","v":{"v":0,"d":"₪ 0.00"}},{"$f":"SUMIFS(הוצאות_מפורטות[סכום שיק],הוצאות_מפורטות[קוד בספר ראשי],סיכום_הוצאות_חודשיות[[#This Row],[קוד בספר ראשי]],הוצאות_מפורטות[תאריך חשבונית],\">=\"&E$3,הוצאות_מפורטות[תאריך חשבונית],\"<=\"&E$4)+SUMIFS(אחר[סכום שיק],אחר[קוד בספר ראשי],סיכום_הוצאות_חודשיות[[#This Row],[קוד בספר ראשי]],אחר[תאריך הגשת הבקשה לשיק],\">=\"&DATEVALUE(\"1 \"&סיכום_הוצאות_חודשיות[[#Headers],[פברואר]]&\" \"&_שנה),אחר[תאריך הגשת הבקשה לשיק],\"<=\"&E$4)","v":{"v":0,"d":"₪ 0.00"}},{"$f":"SUMIFS(הוצאות_מפורטות[סכום שיק],הוצאות_מפורטות[קוד בספר ראשי],סיכום_הוצאות_חודשיות[[#This Row],[קוד בספר ראשי]],הוצאות_מפורטות[תאריך חשבונית],\">=\"&F$3,הוצאות_מפורטות[תאריך חשבונית],\"<=\"&F$4)+SUMIFS(אחר[סכום שיק],אחר[קוד בספר ראשי],סיכום_הוצאות_חודשיות[[#This Row],[קוד בספר ראשי]],אחר[תאריך הגשת הבקשה לשיק],\">=\"&DATEVALUE(\"1 \"&סיכום_הוצאות_חודשיות[[#Headers],[מרץ]]&\" \"&_שנה),אחר[תאריך הגשת הבקשה לשיק],\"<=\"&F$4)","v":{"v":0,"d":"₪ 0.00"}},{"$f":"SUMIFS(הוצאות_מפורטות[סכום שיק],הוצאות_מפורטות[קוד בספר ראשי],סיכום_הוצאות_חודשיות[[#This Row],[קוד בספר ראשי]],הוצאות_מפורטות[תאריך חשבונית],\">=\"&G$3,הוצאות_מפורטות[תאריך חשבונית],\"<=\"&G$4)+SUMIFS(אחר[סכום שיק],אחר[קוד בספר ראשי],סיכום_הוצאות_חודשיות[[#This Row],[קוד בספר ראשי]],אחר[תאריך הגשת הבקשה לשיק],\">=\"&DATEVALUE(\"1 \"&סיכום_הוצאות_חודשיות[[#Headers],[אפר]]&\" \"&_שנה),אחר[תאריך הגשת הבקשה לשיק],\"<=\"&G$4)","v":{"v":0,"d":"₪ 0.00"}},{"$f":"SUMIFS(הוצאות_מפורטות[סכום שיק],הוצאות_מפורטות[קוד בספר ראשי],סיכום_הוצאות_חודשיות[[#This Row],[קוד בספר ראשי]],הוצאות_מפורטות[תאריך חשבונית],\">=\"&H$3,הוצאות_מפורטות[תאריך חשבונית],\"<=\"&H$4)+SUMIFS(אחר[סכום שיק],אחר[קוד בספר ראשי],סיכום_הוצאות_חודשיות[[#This Row],[קוד בספר ראשי]],אחר[תאריך הגשת הבקשה לשיק],\">=\"&DATEVALUE(\"1 \"&סיכום_הוצאות_חודשיות[[#Headers],[מאי]]&\" \"&_שנה),אחר[תאריך הגשת הבקשה לשיק],\"<=\"&H$4)","v":{"v":0,"d":"₪ 0.00"}},{"$f":"SUMIFS(הוצאות_מפורטות[סכום שיק],הוצאות_מפורטות[קוד בספר ראשי],סיכום_הוצאות_חודשיות[[#This Row],[קוד בספר ראשי]],הוצאות_מפורטות[תאריך חשבונית],\">=\"&I$3,הוצאות_מפורטות[תאריך חשבונית],\"<=\"&I$4)+SUMIFS(אחר[סכום שיק],אחר[קוד בספר ראשי],סיכום_הוצאות_חודשיות[[#This Row],[קוד בספר ראשי]],אחר[תאריך הגשת הבקשה לשיק],\">=\"&DATEVALUE(\"1 \"&סיכום_הוצאות_חודשיות[[#Headers],[יונ]]&\" \"&_שנה),אחר[תאריך הגשת הבקשה לשיק],\"<=\"&I$4)","v":{"v":0,"d":"₪ 0.00"}},{"$f":"SUMIFS(הוצאות_מפורטות[סכום שיק],הוצאות_מפורטות[קוד בספר ראשי],סיכום_הוצאות_חודשיות[[#This Row],[קוד בספר ראשי]],הוצאות_מפורטות[תאריך חשבונית],\">=\"&J$3,הוצאות_מפורטות[תאריך חשבונית],\"<=\"&J$4)+SUMIFS(אחר[סכום שיק],אחר[קוד בספר ראשי],סיכום_הוצאות_חודשיות[[#This Row],[קוד בספר ראשי]],אחר[תאריך הגשת הבקשה לשיק],\">=\"&DATEVALUE(\"1 \"&סיכום_הוצאות_חודשיות[[#Headers],[יולי]]&\" \"&_שנה),אחר[תאריך הגשת הבקשה לשיק],\"<=\"&J$4)","v":{"v":0,"d":"₪ 0.00"}},{"$f":"SUMIFS(הוצאות_מפורטות[סכום שיק],הוצאות_מפורטות[קוד בספר ראשי],סיכום_הוצאות_חודשיות[[#This Row],[קוד בספר ראשי]],הוצאות_מפורטות[תאריך חשבונית],\">=\"&K$3,הוצאות_מפורטות[תאריך חשבונית],\"<=\"&K$4)+SUMIFS(אחר[סכום שיק],אחר[קוד בספר ראשי],סיכום_הוצאות_חודשיות[[#This Row],[קוד בספר ראשי]],אחר[תאריך הגשת הבקשה לשיק],\">=\"&DATEVALUE(\"1 \"&סיכום_הוצאות_חודשיות[[#Headers],[אוגוסט]]&\" \"&_שנה),אחר[תאריך הגשת הבקשה לשיק],\"<=\"&K$4)","v":{"v":0,"d":"₪ 0.00"}},{"$f":"SUMIFS(הוצאות_מפורטות[סכום שיק],הוצאות_מפורטות[קוד בספר ראשי],סיכום_הוצאות_חודשיות[[#This Row],[קוד בספר ראשי]],הוצאות_מפורטות[תאריך חשבונית],\">=\"&L$3,הוצאות_מפורטות[תאריך חשבונית],\"<=\"&L$4)+SUMIFS(אחר[סכום שיק],אחר[קוד בספר ראשי],סיכום_הוצאות_חודשיות[[#This Row],[קוד בספר ראשי]],אחר[תאריך הגשת הבקשה לשיק],\">=\"&DATEVALUE(\"1 \"&סיכום_הוצאות_חודשיות[[#Headers],[ספטמבר]]&\" \"&_שנה),אחר[תאריך הגשת הבקשה לשיק],\"<=\"&L$4)","v":{"v":0,"d":"₪ 0.00"}},{"$f":"SUMIFS(הוצאות_מפורטות[סכום שיק],הוצאות_מפורטות[קוד בספר ראשי],סיכום_הוצאות_חודשיות[[#This Row],[קוד בספר ראשי]],הוצאות_מפורטות[תאריך חשבונית],\">=\"&M$3,הוצאות_מפורטות[תאריך חשבונית],\"<=\"&M$4)+SUMIFS(אחר[סכום שיק],אחר[קוד בספר ראשי],סיכום_הוצאות_חודשיות[[#This Row],[קוד בספר ראשי]],אחר[תאריך הגשת הבקשה לשיק],\">=\"&DATEVALUE(\"1 \"&סיכום_הוצאות_חודשיות[[#Headers],[אוקטובר]]&\" \"&_שנה),אחר[תאריך הגשת הבקשה לשיק],\"<=\"&M$4)","v":{"v":0,"d":"₪ 0.00"}},{"$f":"SUMIFS(הוצאות_מפורטות[סכום שיק],הוצאות_מפורטות[קוד בספר ראשי],סיכום_הוצאות_חודשיות[[#This Row],[קוד בספר ראשי]],הוצאות_מפורטות[תאריך חשבונית],\">=\"&N$3,הוצאות_מפורטות[תאריך חשבונית],\"<=\"&N$4)+SUMIFS(אחר[סכום שיק],אחר[קוד בספר ראשי],סיכום_הוצאות_חודשיות[[#This Row],[קוד בספר ראשי]],אחר[תאריך הגשת הבקשה לשיק],\">=\"&DATEVALUE(\"1 \"&סיכום_הוצאות_חודשיות[[#Headers],[נובמבר]]&\" \"&_שנה),אחר[תאריך הגשת הבקשה לשיק],\"<=\"&N$4)","v":{"v":0,"d":"₪ 0.00"}},{"$f":"SUMIFS(הוצאות_מפורטות[סכום שיק],הוצאות_מפורטות[קוד בספר ראשי],סיכום_הוצאות_חודשיות[[#This Row],[קוד בספר ראשי]],הוצאות_מפורטות[תאריך חשבונית],\">=\"&O$3,הוצאות_מפורטות[תאריך חשבונית],\"<=\"&O$4)+SUMIFS(אחר[סכום שיק],אחר[קוד בספר ראשי],סיכום_הוצאות_חודשיות[[#This Row],[קוד בספר ראשי]],אחר[תאריך הגשת הבקשה לשיק],\">=\"&DATEVALUE(\"1 \"&סיכום_הוצאות_חודשיות[[#Headers],[דצמבר]]&\" \"&_שנה),אחר[תאריך הגשת הבקשה לשיק],\"<=\"&O$4)","v":{"v":0,"d":"₪ 0.00"}},{"$f":"SUM(סיכום_הוצאות_חודשיות[[#This Row],[ינואר]:[דצמבר]])","v":{"v":0,"d":"₪ 0.00"}}]
[null,3000,"מדפסות",{"$f":"SUMIFS(הוצאות_מפורטות[סכום שיק],הוצאות_מפורטות[קוד בספר ראשי],סיכום_הוצאות_חודשיות[[#This Row],[קוד בספר ראשי]],הוצאות_מפורטות[תאריך חשבונית],\">=\"&D$3,הוצאות_מפורטות[תאריך חשבונית],\"<=\"&D$4)+SUMIFS(אחר[סכום שיק],אחר[קוד בספר ראשי],סיכום_הוצאות_חודשיות[[#This Row],[קוד בספר ראשי]],אחר[תאריך הגשת הבקשה לשיק],\">=\"&DATEVALUE(\"1 \"&סיכום_הוצאות_חודשיות[[#Headers],[ינואר]]&\" \"&_שנה),אחר[תאריך הגשת הבקשה לשיק],\"<=\"&D$4)","v":{"v":0,"d":"₪ 0.00"}},{"$f":"SUMIFS(הוצאות_מפורטות[סכום שיק],הוצאות_מפורטות[קוד בספר ראשי],סיכום_הוצאות_חודשיות[[#This Row],[קוד בספר ראשי]],הוצאות_מפורטות[תאריך חשבונית],\">=\"&E$3,הוצאות_מפורטות[תאריך חשבונית],\"<=\"&E$4)+SUMIFS(אחר[סכום שיק],אחר[קוד בספר ראשי],סיכום_הוצאות_חודשיות[[#This Row],[קוד בספר ראשי]],אחר[תאריך הגשת הבקשה לשיק],\">=\"&DATEVALUE(\"1 \"&סיכום_הוצאות_חודשיות[[#Headers],[פברואר]]&\" \"&_שנה),אחר[תאריך הגשת הבקשה לשיק],\"<=\"&E$4)","v":{"v":0,"d":"₪ 0.00"}},{"$f":"SUMIFS(הוצאות_מפורטות[סכום שיק],הוצאות_מפורטות[קוד בספר ראשי],סיכום_הוצאות_חודשיות[[#This Row],[קוד בספר ראשי]],הוצאות_מפורטות[תאריך חשבונית],\">=\"&F$3,הוצאות_מפורטות[תאריך חשבונית],\"<=\"&F$4)+SUMIFS(אחר[סכום שיק],אחר[קוד בספר ראשי],סיכום_הוצאות_חודשיות[[#This Row],[קוד בספר ראשי]],אחר[תאריך הגשת הבקשה לשיק],\">=\"&DATEVALUE(\"1 \"&סיכום_הוצאות_חודשיות[[#Headers],[מרץ]]&\" \"&_שנה),אחר[תאריך הגשת הבקשה לשיק],\"<=\"&F$4)","v":{"v":0,"d":"₪ 0.00"}},{"$f":"SUMIFS(הוצאות_מפורטות[סכום שיק],הוצאות_מפורטות[קוד בספר ראשי],סיכום_הוצאות_חודשיות[[#This Row],[קוד בספר ראשי]],הוצאות_מפורטות[תאריך חשבונית],\">=\"&G$3,הוצאות_מפורטות[תאריך חשבונית],\"<=\"&G$4)+SUMIFS(אחר[סכום שיק],אחר[קוד בספר ראשי],סיכום_הוצאות_חודשיות[[#This Row],[קוד בספר ראשי]],אחר[תאריך הגשת הבקשה לשיק],\">=\"&DATEVALUE(\"1 \"&סיכום_הוצאות_חודשיות[[#Headers],[אפר]]&\" \"&_שנה),אחר[תאריך הגשת הבקשה לשיק],\"<=\"&G$4)","v":{"v":0,"d":"₪ 0.00"}},{"$f":"SUMIFS(הוצאות_מפורטות[סכום שיק],הוצאות_מפורטות[קוד בספר ראשי],סיכום_הוצאות_חודשיות[[#This Row],[קוד בספר ראשי]],הוצאות_מפורטות[תאריך חשבונית],\">=\"&H$3,הוצאות_מפורטות[תאריך חשבונית],\"<=\"&H$4)+SUMIFS(אחר[סכום שיק],אחר[קוד בספר ראשי],סיכום_הוצאות_חודשיות[[#This Row],[קוד בספר ראשי]],אחר[תאריך הגשת הבקשה לשיק],\">=\"&DATEVALUE(\"1 \"&סיכום_הוצאות_חודשיות[[#Headers],[מאי]]&\" \"&_שנה),אחר[תאריך הגשת הבקשה לשיק],\"<=\"&H$4)","v":{"v":0,"d":"₪ 0.00"}},{"$f":"SUMIFS(הוצאות_מפורטות[סכום שיק],הוצאות_מפורטות[קוד בספר ראשי],סיכום_הוצאות_חודשיות[[#This Row],[קוד בספר ראשי]],הוצאות_מפורטות[תאריך חשבונית],\">=\"&I$3,הוצאות_מפורטות[תאריך חשבונית],\"<=\"&I$4)+SUMIFS(אחר[סכום שיק],אחר[קוד בספר ראשי],סיכום_הוצאות_חודשיות[[#This Row],[קוד בספר ראשי]],אחר[תאריך הגשת הבקשה לשיק],\">=\"&DATEVALUE(\"1 \"&סיכום_הוצאות_חודשיות[[#Headers],[יונ]]&\" \"&_שנה),אחר[תאריך הגשת הבקשה לשיק],\"<=\"&I$4)","v":{"v":0,"d":"₪ 0.00"}},{"$f":"SUMIFS(הוצאות_מפורטות[סכום שיק],הוצאות_מפורטות[קוד בספר ראשי],סיכום_הוצאות_חודשיות[[#This Row],[קוד בספר ראשי]],הוצאות_מפורטות[תאריך חשבונית],\">=\"&J$3,הוצאות_מפורטות[תאריך חשבונית],\"<=\"&J$4)+SUMIFS(אחר[סכום שיק],אחר[קוד בספר ראשי],סיכום_הוצאות_חודשיות[[#This Row],[קוד בספר ראשי]],אחר[תאריך הגשת הבקשה לשיק],\">=\"&DATEVALUE(\"1 \"&סיכום_הוצאות_חודשיות[[#Headers],[יולי]]&\" \"&_שנה),אחר[תאריך הגשת הבקשה לשיק],\"<=\"&J$4)","v":{"v":0,"d":"₪ 0.00"}},{"$f":"SUMIFS(הוצאות_מפורטות[סכום שיק],הוצאות_מפורטות[קוד בספר ראשי],סיכום_הוצאות_חודשיות[[#This Row],[קוד בספר ראשי]],הוצאות_מפורטות[תאריך חשבונית],\">=\"&K$3,הוצאות_מפורטות[תאריך חשבונית],\"<=\"&K$4)+SUMIFS(אחר[סכום שיק],אחר[קוד בספר ראשי],סיכום_הוצאות_חודשיות[[#This Row],[קוד בספר ראשי]],אחר[תאריך הגשת הבקשה לשיק],\">=\"&DATEVALUE(\"1 \"&סיכום_הוצאות_חודשיות[[#Headers],[אוגוסט]]&\" \"&_שנה),אחר[תאריך הגשת הבקשה לשיק],\"<=\"&K$4)","v":{"v":0,"d":"₪ 0.00"}},{"$f":"SUMIFS(הוצאות_מפורטות[סכום שיק],הוצאות_מפורטות[קוד בספר ראשי],סיכום_הוצאות_חודשיות[[#This Row],[קוד בספר ראשי]],הוצאות_מפורטות[תאריך חשבונית],\">=\"&L$3,הוצאות_מפורטות[תאריך חשבונית],\"<=\"&L$4)+SUMIFS(אחר[סכום שיק],אחר[קוד בספר ראשי],סיכום_הוצאות_חודשיות[[#This Row],[קוד בספר ראשי]],אחר[תאריך הגשת הבקשה לשיק],\">=\"&DATEVALUE(\"1 \"&סיכום_הוצאות_חודשיות[[#Headers],[ספטמבר]]&\" \"&_שנה),אחר[תאריך הגשת הבקשה לשיק],\"<=\"&L$4)","v":{"v":0,"d":"₪ 0.00"}},{"$f":"SUMIFS(הוצאות_מפורטות[סכום שיק],הוצאות_מפורטות[קוד בספר ראשי],סיכום_הוצאות_חודשיות[[#This Row],[קוד בספר ראשי]],הוצאות_מפורטות[תאריך חשבונית],\">=\"&M$3,הוצאות_מפורטות[תאריך חשבונית],\"<=\"&M$4)+SUMIFS(אחר[סכום שיק],אחר[קוד בספר ראשי],סיכום_הוצאות_חודשיות[[#This Row],[קוד בספר ראשי]],אחר[תאריך הגשת הבקשה לשיק],\">=\"&DATEVALUE(\"1 \"&סיכום_הוצאות_חודשיות[[#Headers],[אוקטובר]]&\" \"&_שנה),אחר[תאריך הגשת הבקשה לשיק],\"<=\"&M$4)","v":{"v":0,"d":"₪ 0.00"}},{"$f":"SUMIFS(הוצאות_מפורטות[סכום שיק],הוצאות_מפורטות[קוד בספר ראשי],סיכום_הוצאות_חודשיות[[#This Row],[קוד בספר ראשי]],הוצאות_מפורטות[תאריך חשבונית],\">=\"&N$3,הוצאות_מפורטות[תאריך חשבונית],\"<=\"&N$4)+SUMIFS(אחר[סכום שיק],אחר[קוד בספר ראשי],סיכום_הוצאות_חודשיות[[#This Row],[קוד בספר ראשי]],אחר[תאריך הגשת הבקשה לשיק],\">=\"&DATEVALUE(\"1 \"&סיכום_הוצאות_חודשיות[[#Headers],[נובמבר]]&\" \"&_שנה),אחר[תאריך הגשת הבקשה לשיק],\"<=\"&N$4)","v":{"v":0,"d":"₪ 0.00"}},{"$f":"SUMIFS(הוצאות_מפורטות[סכום שיק],הוצאות_מפורטות[קוד בספר ראשי],סיכום_הוצאות_חודשיות[[#This Row],[קוד בספר ראשי]],הוצאות_מפורטות[תאריך חשבונית],\">=\"&O$3,הוצאות_מפורטות[תאריך חשבונית],\"<=\"&O$4)+SUMIFS(אחר[סכום שיק],אחר[קוד בספר ראשי],סיכום_הוצאות_חודשיות[[#This Row],[קוד בספר ראשי]],אחר[תאריך הגשת הבקשה לשיק],\">=\"&DATEVALUE(\"1 \"&סיכום_הוצאות_חודשיות[[#Headers],[דצמבר]]&\" \"&_שנה),אחר[תאריך הגשת הבקשה לשיק],\"<=\"&O$4)","v":{"v":0,"d":"₪ 0.00"}},{"$f":"SUM(סיכום_הוצאות_חודשיות[[#This Row],[ינואר]:[דצמבר]])","v":{"v":0,"d":"₪ 0.00"}}]
[null,4000,"עלויות שרתים",{"$f":"SUMIFS(הוצאות_מפורטות[סכום שיק],הוצאות_מפורטות[קוד בספר ראשי],סיכום_הוצאות_חודשיות[[#This Row],[קוד בספר ראשי]],הוצאות_מפורטות[תאריך חשבונית],\">=\"&D$3,הוצאות_מפורטות[תאריך חשבונית],\"<=\"&D$4)+SUMIFS(אחר[סכום שיק],אחר[קוד בספר ראשי],סיכום_הוצאות_חודשיות[[#This Row],[קוד בספר ראשי]],אחר[תאריך הגשת הבקשה לשיק],\">=\"&DATEVALUE(\"1 \"&סיכום_הוצאות_חודשיות[[#Headers],[ינואר]]&\" \"&_שנה),אחר[תאריך הגשת הבקשה לשיק],\"<=\"&D$4)","v":{"v":0,"d":"₪ 0.00"}},{"$f":"SUMIFS(הוצאות_מפורטות[סכום שיק],הוצאות_מפורטות[קוד בספר ראשי],סיכום_הוצאות_חודשיות[[#This Row],[קוד בספר ראשי]],הוצאות_מפורטות[תאריך חשבונית],\">=\"&E$3,הוצאות_מפורטות[תאריך חשבונית],\"<=\"&E$4)+SUMIFS(אחר[סכום שיק],אחר[קוד בספר ראשי],סיכום_הוצאות_חודשיות[[#This Row],[קוד בספר ראשי]],אחר[תאריך הגשת הבקשה לשיק],\">=\"&DATEVALUE(\"1 \"&סיכום_הוצאות_חודשיות[[#Headers],[פברואר]]&\" \"&_שנה),אחר[תאריך הגשת הבקשה לשיק],\"<=\"&E$4)","v":{"v":0,"d":"₪ 0.00"}},{"$f":"SUMIFS(הוצאות_מפורטות[סכום שיק],הוצאות_מפורטות[קוד בספר ראשי],סיכום_הוצאות_חודשיות[[#This Row],[קוד בספר ראשי]],הוצאות_מפורטות[תאריך חשבונית],\">=\"&F$3,הוצאות_מפורטות[תאריך חשבונית],\"<=\"&F$4)+SUMIFS(אחר[סכום שיק],אחר[קוד בספר ראשי],סיכום_הוצאות_חודשיות[[#This Row],[קוד בספר ראשי]],אחר[תאריך הגשת הבקשה לשיק],\">=\"&DATEVALUE(\"1 \"&סיכום_הוצאות_חודשיות[[#Headers],[מרץ]]&\" \"&_שנה),אחר[תאריך הגשת הבקשה לשיק],\"<=\"&F$4)","v":{"v":0,"d":"₪ 0.00"}},{"$f":"SUMIFS(הוצאות_מפורטות[סכום שיק],הוצאות_מפורטות[קוד בספר ראשי],סיכום_הוצאות_חודשיות[[#This Row],[קוד בספר ראשי]],הוצאות_מפורטות[תאריך חשבונית],\">=\"&G$3,הוצאות_מפורטות[תאריך חשבונית],\"<=\"&G$4)+SUMIFS(אחר[סכום שיק],אחר[קוד בספר ראשי],סיכום_הוצאות_חודשיות[[#This Row],[קוד בספר ראשי]],אחר[תאריך הגשת הבקשה לשיק],\">=\"&DATEVALUE(\"1 \"&סיכום_הוצאות_חודשיות[[#Headers],[אפר]]&\" \"&_שנה),אחר[תאריך הגשת הבקשה לשיק],\"<=\"&G$4)","v":{"v":0,"d":"₪ 0.00"}},{"$f":"SUMIFS(הוצאות_מפורטות[סכום שיק],הוצאות_מפורטות[קוד בספר ראשי],סיכום_הוצאות_חודשיות[[#This Row],[קוד בספר ראשי]],הוצאות_מפורטות[תאריך חשבונית],\">=\"&H$3,הוצאות_מפורטות[תאריך חשבונית],\"<=\"&H$4)+SUMIFS(אחר[סכום שיק],אחר[קוד בספר ראשי],סיכום_הוצאות_חודשיות[[#This Row],[קוד בספר ראשי]],אחר[תאריך הגשת הבקשה לשיק],\">=\"&DATEVALUE(\"1 \"&סיכום_הוצאות_חודשיות[[#Headers],[מאי]]&\" \"&_שנה),אחר[תאריך הגשת הבקשה לשיק],\"<=\"&H$4)","v":{"v":0,"d":"₪ 0.00"}},{"$f":"SUMIFS(הוצאות_מפורטות[סכום שיק],הוצאות_מפורטות[קוד בספר ראשי],סיכום_הוצאות_חודשיות[[#This Row],[קוד בספר ראשי]],הוצאות_מפורטות[תאריך חשבונית],\">=\"&I$3,הוצאות_מפורטות[תאריך חשבונית],\"<=\"&I$4)+SUMIFS(אחר[סכום שיק],אחר[קוד בספר ראשי],סיכום_הוצאות_חודשיות[[#This Row],[קוד בספר ראשי]],אחר[תאריך הגשת הבקשה לשיק],\">=\"&DATEVALUE(\"1 \"&סיכום_הוצאות_חודשיות[[#Headers],[יונ]]&\" \"&_שנה),אחר[תאריך הגשת הבקשה לשיק],\"<=\"&I$4)","v":{"v":0,"d":"₪ 0.00"}},{"$f":"SUMIFS(הוצאות_מפורטות[סכום שיק],הוצאות_מפורטות[קוד בספר ראשי],סיכום_הוצאות_חודשיות[[#This Row],[קוד בספר ראשי]],הוצאות_מפורטות[תאריך חשבונית],\">=\"&J$3,הוצאות_מפורטות[תאריך חשבונית],\"<=\"&J$4)+SUMIFS(אחר[סכום שיק],אחר[קוד בספר ראשי],סיכום_הוצאות_חודשיות[[#This Row],[קוד בספר ראשי]],אחר[תאריך הגשת הבקשה לשיק],\">=\"&DATEVALUE(\"1 \"&סיכום_הוצאות_חודשיות[[#Headers],[יולי]]&\" \"&_שנה),אחר[תאריך הגשת הבקשה לשיק],\"<=\"&J$4)","v":{"v":0,"d":"₪ 0.00"}},{"$f":"SUMIFS(הוצאות_מפורטות[סכום שיק],הוצאות_מפורטות[קוד בספר ראשי],סיכום_הוצאות_חודשיות[[#This Row],[קוד בספר ראשי]],הוצאות_מפורטות[תאריך חשבונית],\">=\"&K$3,הוצאות_מפורטות[תאריך חשבונית],\"<=\"&K$4)+SUMIFS(אחר[סכום שיק],אחר[קוד בספר ראשי],סיכום_הוצאות_חודשיות[[#This Row],[קוד בספר ראשי]],אחר[תאריך הגשת הבקשה לשיק],\">=\"&DATEVALUE(\"1 \"&סיכום_הוצאות_חודשיות[[#Headers],[אוגוסט]]&\" \"&_שנה),אחר[תאריך הגשת הבקשה לשיק],\"<=\"&K$4)","v":{"v":0,"d":"₪ 0.00"}},{"$f":"SUMIFS(הוצאות_מפורטות[סכום שיק],הוצאות_מפורטות[קוד בספר ראשי],סיכום_הוצאות_חודשיות[[#This Row],[קוד בספר ראשי]],הוצאות_מפורטות[תאריך חשבונית],\">=\"&L$3,הוצאות_מפורטות[תאריך חשבונית],\"<=\"&L$4)+SUMIFS(אחר[סכום שיק],אחר[קוד בספר ראשי],סיכום_הוצאות_חודשיות[[#This Row],[קוד בספר ראשי]],אחר[תאריך הגשת הבקשה לשיק],\">=\"&DATEVALUE(\"1 \"&סיכום_הוצאות_חודשיות[[#Headers],[ספטמבר]]&\" \"&_שנה),אחר[תאריך הגשת הבקשה לשיק],\"<=\"&L$4)","v":{"v":0,"d":"₪ 0.00"}},{"$f":"SUMIFS(הוצאות_מפורטות[סכום שיק],הוצאות_מפורטות[קוד בספר ראשי],סיכום_הוצאות_חודשיות[[#This Row],[קוד בספר ראשי]],הוצאות_מפורטות[תאריך חשבונית],\">=\"&M$3,הוצאות_מפורטות[תאריך חשבונית],\"<=\"&M$4)+SUMIFS(אחר[סכום שיק],אחר[קוד בספר ראשי],סיכום_הוצאות_חודשיות[[#This Row],[קוד בספר ראשי]],אחר[תאריך הגשת הבקשה לשיק],\">=\"&DATEVALUE(\"1 \"&סיכום_הוצאות_חודשיות[[#Headers],[אוקטובר]]&\" \"&_שנה),אחר[תאריך הגשת הבקשה לשיק],\"<=\"&M$4)","v":{"v":0,"d":"₪ 0.00"}},{"$f":"SUMIFS(הוצאות_מפורטות[סכום שיק],הוצאות_מפורטות[קוד בספר ראשי],סיכום_הוצאות_חודשיות[[#This Row],[קוד בספר ראשי]],הוצאות_מפורטות[תאריך חשבונית],\">=\"&N$3,הוצאות_מפורטות[תאריך חשבונית],\"<=\"&N$4)+SUMIFS(אחר[סכום שיק],אחר[קוד בספר ראשי],סיכום_הוצאות_חודשיות[[#This Row],[קוד בספר ראשי]],אחר[תאריך הגשת הבקשה לשיק],\">=\"&DATEVALUE(\"1 \"&סיכום_הוצאות_חודשיות[[#Headers],[נובמבר]]&\" \"&_שנה),אחר[תאריך הגשת הבקשה לשיק],\"<=\"&N$4)","v":{"v":0,"d":"₪ 0.00"}},{"$f":"SUMIFS(הוצאות_מפורטות[סכום שיק],הוצאות_מפורטות[קוד בספר ראשי],סיכום_הוצאות_חודשיות[[#This Row],[קוד בספר ראשי]],הוצאות_מפורטות[תאריך חשבונית],\">=\"&O$3,הוצאות_מפורטות[תאריך חשבונית],\"<=\"&O$4)+SUMIFS(אחר[סכום שיק],אחר[קוד בספר ראשי],סיכום_הוצאות_חודשיות[[#This Row],[קוד בספר ראשי]],אחר[תאריך הגשת הבקשה לשיק],\">=\"&DATEVALUE(\"1 \"&סיכום_הוצאות_חודשיות[[#Headers],[דצמבר]]&\" \"&_שנה),אחר[תאריך הגשת הבקשה לשיק],\"<=\"&O$4)","v":{"v":0,"d":"₪ 0.00"}},{"$f":"SUM(סיכום_הוצאות_חודשיות[[#This Row],[ינואר]:[דצמבר]])","v":{"v":0,"d":"₪ 0.00"}}]
[null,5000,"ציוד",{"$f":"SUMIFS(הוצאות_מפורטות[סכום שיק],הוצאות_מפורטות[קוד בספר ראשי],סיכום_הוצאות_חודשיות[[#This Row],[קוד בספר ראשי]],הוצאות_מפורטות[תאריך חשבונית],\">=\"&D$3,הוצאות_מפורטות[תאריך חשבונית],\"<=\"&D$4)+SUMIFS(אחר[סכום שיק],אחר[קוד בספר ראשי],סיכום_הוצאות_חודשיות[[#This Row],[קוד בספר ראשי]],אחר[תאריך הגשת הבקשה לשיק],\">=\"&DATEVALUE(\"1 \"&סיכום_הוצאות_חודשיות[[#Headers],[ינואר]]&\" \"&_שנה),אחר[תאריך הגשת הבקשה לשיק],\"<=\"&D$4)","v":{"v":0,"d":"₪ 0.00"}},{"$f":"SUMIFS(הוצאות_מפורטות[סכום שיק],הוצאות_מפורטות[קוד בספר ראשי],סיכום_הוצאות_חודשיות[[#This Row],[קוד בספר ראשי]],הוצאות_מפורטות[תאריך חשבונית],\">=\"&E$3,הוצאות_מפורטות[תאריך חשבונית],\"<=\"&E$4)+SUMIFS(אחר[סכום שיק],אחר[קוד בספר ראשי],סיכום_הוצאות_חודשיות[[#This Row],[קוד בספר ראשי]],אחר[תאריך הגשת הבקשה לשיק],\">=\"&DATEVALUE(\"1 \"&סיכום_הוצאות_חודשיות[[#Headers],[פברואר]]&\" \"&_שנה),אחר[תאריך הגשת הבקשה לשיק],\"<=\"&E$4)","v":{"v":0,"d":"₪ 0.00"}},{"$f":"SUMIFS(הוצאות_מפורטות[סכום שיק],הוצאות_מפורטות[קוד בספר ראשי],סיכום_הוצאות_חודשיות[[#This Row],[קוד בספר ראשי]],הוצאות_מפורטות[תאריך חשבונית],\">=\"&F$3,הוצאות_מפורטות[תאריך חשבונית],\"<=\"&F$4)+SUMIFS(אחר[סכום שיק],אחר[קוד בספר ראשי],סיכום_הוצאות_חודשיות[[#This Row],[קוד בספר ראשי]],אחר[תאריך הגשת הבקשה לשיק],\">=\"&DATEVALUE(\"1 \"&סיכום_הוצאות_חודשיות[[#Headers],[מרץ]]&\" \"&_שנה),אחר[תאריך הגשת הבקשה לשיק],\"<=\"&F$4)","v":{"v":0,"d":"₪ 0.00"}},{"$f":"SUMIFS(הוצאות_מפורטות[סכום שיק],הוצאות_מפורטות[קוד בספר ראשי],סיכום_הוצאות_חודשיות[[#This Row],[קוד בספר ראשי]],הוצאות_מפורטות[תאריך חשבונית],\">=\"&G$3,הוצאות_מפורטות[תאריך חשבונית],\"<=\"&G$4)+SUMIFS(אחר[סכום שיק],אחר[קוד בספר ראשי],סיכום_הוצאות_חודשיות[[#This Row],[קוד בספר ראשי]],אחר[תאריך הגשת הבקשה לשיק],\">=\"&DATEVALUE(\"1 \"&סיכום_הוצאות_חודשיות[[#Headers],[אפר]]&\" \"&_שנה),אחר[תאריך הגשת הבקשה לשיק],\"<=\"&G$4)","v":{"v":0,"d":"₪ 0.00"}},{"$f":"SUMIFS(הוצאות_מפורטות[סכום שיק],הוצאות_מפורטות[קוד בספר ראשי],סיכום_הוצאות_חודשיות[[#This Row],[קוד בספר ראשי]],הוצאות_מפורטות[תאריך חשבונית],\">=\"&H$3,הוצאות_מפורטות[תאריך חשבונית],\"<=\"&H$4)+SUMIFS(אחר[סכום שיק],אחר[קוד בספר ראשי],סיכום_הוצאות_חודשיות[[#This Row],[קוד בספר ראשי]],אחר[תאריך הגשת הבקשה לשיק],\">=\"&DATEVALUE(\"1 \"&סיכום_הוצאות_חודשיות[[#Headers],[מאי]]&\" \"&_שנה),אחר[תאריך הגשת הבקשה לשיק],\"<=\"&H$4)","v":{"v":0,"d":"₪ 0.00"}},{"$f":"SUMIFS(הוצאות_מפורטות[סכום שיק],הוצאות_מפורטות[קוד בספר ראשי],סיכום_הוצאות_חודשיות[[#This Row],[קוד בספר ראשי]],הוצאות_מפורטות[תאריך חשבונית],\">=\"&I$3,הוצאות_מפורטות[תאריך חשבונית],\"<=\"&I$4)+SUMIFS(אחר[סכום שיק],אחר[קוד בספר ראשי],סיכום_הוצאות_חודשיות[[#This Row],[קוד בספר ראשי]],אחר[תאריך הגשת הבקשה לשיק],\">=\"&DATEVALUE(\"1 \"&סיכום_הוצאות_חודשיות[[#Headers],[יונ]]&\" \"&_שנה),אחר[תאריך הגשת הבקשה לשיק],\"<=\"&I$4)","v":{"v":0,"d":"₪ 0.00"}},{"$f":"SUMIFS(הוצאות_מפורטות[סכום שיק],הוצאות_מפורטות[קוד בספר ראשי],סיכום_הוצאות_חודשיות[[#This Row],[קוד בספר ראשי]],הוצאות_מפורטות[תאריך חשבונית],\">=\"&J$3,הוצאות_מפורטות[תאריך חשבונית],\"<=\"&J$4)+SUMIFS(אחר[סכום שיק],אחר[קוד בספר ראשי],סיכום_הוצאות_חודשיות[[#This Row],[קוד בספר ראשי]],אחר[תאריך הגשת הבקשה לשיק],\">=\"&DATEVALUE(\"1 \"&סיכום_הוצאות_חודשיות[[#Headers],[יולי]]&\" \"&_שנה),אחר[תאריך הגשת הבקשה לשיק],\"<=\"&J$4)","v":{"v":0,"d":"₪ 0.00"}},{"$f":"SUMIFS(הוצאות_מפורטות[סכום שיק],הוצאות_מפורטות[קוד בספר ראשי],סיכום_הוצאות_חודשיות[[#This Row],[קוד בספר ראשי]],הוצאות_מפורטות[תאריך חשבונית],\">=\"&K$3,הוצאות_מפורטות[תאריך חשבונית],\"<=\"&K$4)+SUMIFS(אחר[סכום שיק],אחר[קוד בספר ראשי],סיכום_הוצאות_חודשיות[[#This Row],[קוד בספר ראשי]],אחר[תאריך הגשת הבקשה לשיק],\">=\"&DATEVALUE(\"1 \"&סיכום_הוצאות_חודשיות[[#Headers],[אוגוסט]]&\" \"&_שנה),אחר[תאריך הגשת הבקשה לשיק],\"<=\"&K$4)","v":{"v":0,"d":"₪ 0.00"}},{"$f":"SUMIFS(הוצאות_מפורטות[סכום שיק],הוצאות_מפורטות[קוד בספר ראשי],סיכום_הוצאות_חודשיות[[#This Row],[קוד בספר ראשי]],הוצאות_מפורטות[תאריך חשבונית],\">=\"&L$3,הוצאות_מפורטות[תאריך חשבונית],\"<=\"&L$4)+SUMIFS(אחר[סכום שיק],אחר[קוד בספר ראשי],סיכום_הוצאות_חודשיות[[#This Row],[קוד בספר ראשי]],אחר[תאריך הגשת הבקשה לשיק],\">=\"&DATEVALUE(\"1 \"&סיכום_הוצאות_חודשיות[[#Headers],[ספטמבר]]&\" \"&_שנה),אחר[תאריך הגשת הבקשה לשיק],\"<=\"&L$4)","v":{"v":0,"d":"₪ 0.00"}},{"$f":"SUMIFS(הוצאות_מפורטות[סכום שיק],הוצאות_מפורטות[קוד בספר ראשי],סיכום_הוצאות_חודשיות[[#This Row],[קוד בספר ראשי]],הוצאות_מפורטות[תאריך חשבונית],\">=\"&M$3,הוצאות_מפורטות[תאריך חשבונית],\"<=\"&M$4)+SUMIFS(אחר[סכום שיק],אחר[קוד בספר ראשי],סיכום_הוצאות_חודשיות[[#This Row],[קוד בספר ראשי]],אחר[תאריך הגשת הבקשה לשיק],\">=\"&DATEVALUE(\"1 \"&סיכום_הוצאות_חודשיות[[#Headers],[אוקטובר]]&\" \"&_שנה),אחר[תאריך הגשת הבקשה לשיק],\"<=\"&M$4)","v":{"v":0,"d":"₪ 0.00"}},{"$f":"SUMIFS(הוצאות_מפורטות[סכום שיק],הוצאות_מפורטות[קוד בספר ראשי],סיכום_הוצאות_חודשיות[[#This Row],[קוד בספר ראשי]],הוצאות_מפורטות[תאריך חשבונית],\">=\"&N$3,הוצאות_מפורטות[תאריך חשבונית],\"<=\"&N$4)+SUMIFS(אחר[סכום שיק],אחר[קוד בספר ראשי],סיכום_הוצאות_חודשיות[[#This Row],[קוד בספר ראשי]],אחר[תאריך הגשת הבקשה לשיק],\">=\"&DATEVALUE(\"1 \"&סיכום_הוצאות_חודשיות[[#Headers],[נובמבר]]&\" \"&_שנה),אחר[תאריך הגשת הבקשה לשיק],\"<=\"&N$4)","v":{"v":0,"d":"₪ 0.00"}},{"$f":"SUMIFS(הוצאות_מפורטות[סכום שיק],הוצאות_מפורטות[קוד בספר ראשי],סיכום_הוצאות_חודשיות[[#This Row],[קוד בספר ראשי]],הוצאות_מפורטות[תאריך חשבונית],\">=\"&O$3,הוצאות_מפורטות[תאריך חשבונית],\"<=\"&O$4)+SUMIFS(אחר[סכום שיק],אחר[קוד בספר ראשי],סיכום_הוצאות_חודשיות[[#This Row],[קוד בספר ראשי]],אחר[תאריך הגשת הבקשה לשיק],\">=\"&DATEVALUE(\"1 \"&סיכום_הוצאות_חודשיות[[#Headers],[דצמבר]]&\" \"&_שנה),אחר[תאריך הגשת הבקשה לשיק],\"<=\"&O$4)","v":{"v":0,"d":"₪ 0.00"}},{"$f":"SUM(סיכום_הוצאות_חודשיות[[#This Row],[ינואר]:[דצמבר]])","v":{"v":0,"d":"₪ 0.00"}}]
[null,6000,"הוצאות לקוח",{"$f":"SUMIFS(הוצאות_מפורטות[סכום שיק],הוצאות_מפורטות[קוד בספר ראשי],סיכום_הוצאות_חודשיות[[#This Row],[קוד בספר ראשי]],הוצאות_מפורטות[תאריך חשבונית],\">=\"&D$3,הוצאות_מפורטות[תאריך חשבונית],\"<=\"&D$4)+SUMIFS(אחר[סכום שיק],אחר[קוד בספר ראשי],סיכום_הוצאות_חודשיות[[#This Row],[קוד בספר ראשי]],אחר[תאריך הגשת הבקשה לשיק],\">=\"&DATEVALUE(\"1 \"&סיכום_הוצאות_חודשיות[[#Headers],[ינואר]]&\" \"&_שנה),אחר[תאריך הגשת הבקשה לשיק],\"<=\"&D$4)","v":{"v":0,"d":"₪ 0.00"}},{"$f":"SUMIFS(הוצאות_מפורטות[סכום שיק],הוצאות_מפורטות[קוד בספר ראשי],סיכום_הוצאות_חודשיות[[#This Row],[קוד בספר ראשי]],הוצאות_מפורטות[תאריך חשבונית],\">=\"&E$3,הוצאות_מפורטות[תאריך חשבונית],\"<=\"&E$4)+SUMIFS(אחר[סכום שיק],אחר[קוד בספר ראשי],סיכום_הוצאות_חודשיות[[#This Row],[קוד בספר ראשי]],אחר[תאריך הגשת הבקשה לשיק],\">=\"&DATEVALUE(\"1 \"&סיכום_הוצאות_חודשיות[[#Headers],[פברואר]]&\" \"&_שנה),אחר[תאריך הגשת הבקשה לשיק],\"<=\"&E$4)","v":{"v":0,"d":"₪ 0.00"}},{"$f":"SUMIFS(הוצאות_מפורטות[סכום שיק],הוצאות_מפורטות[קוד בספר ראשי],סיכום_הוצאות_חודשיות[[#This Row],[קוד בספר ראשי]],הוצאות_מפורטות[תאריך חשבונית],\">=\"&F$3,הוצאות_מפורטות[תאריך חשבונית],\"<=\"&F$4)+SUMIFS(אחר[סכום שיק],אחר[קוד בספר ראשי],סיכום_הוצאות_חודשיות[[#This Row],[קוד בספר ראשי]],אחר[תאריך הגשת הבקשה לשיק],\">=\"&DATEVALUE(\"1 \"&סיכום_הוצאות_חודשיות[[#Headers],[מרץ]]&\" \"&_שנה),אחר[תאריך הגשת הבקשה לשיק],\"<=\"&F$4)","v":{"v":0,"d":"₪ 0.00"}},{"$f":"SUMIFS(הוצאות_מפורטות[סכום שיק],הוצאות_מפורטות[קוד בספר ראשי],סיכום_הוצאות_חודשיות[[#This Row],[קוד בספר ראשי]],הוצאות_מפורטות[תאריך חשבונית],\">=\"&G$3,הוצאות_מפורטות[תאריך חשבונית],\"<=\"&G$4)+SUMIFS(אחר[סכום שיק],אחר[קוד בספר ראשי],סיכום_הוצאות_חודשיות[[#This Row],[קוד בספר ראשי]],אחר[תאריך הגשת הבקשה לשיק],\">=\"&DATEVALUE(\"1 \"&סיכום_הוצאות_חודשיות[[#Headers],[אפר]]&\" \"&_שנה),אחר[תאריך הגשת הבקשה לשיק],\"<=\"&G$4)","v":{"v":0,"d":"₪ 0.00"}},{"$f":"SUMIFS(הוצאות_מפורטות[סכום שיק],הוצאות_מפורטות[קוד בספר ראשי],סיכום_הוצאות_חודשיות[[#This Row],[קוד בספר ראשי]],הוצאות_מפורטות[תאריך חשבונית],\">=\"&H$3,הוצאות_מפורטות[תאריך חשבונית],\"<=\"&H$4)+SUMIFS(אחר[סכום שיק],אחר[קוד בספר ראשי],סיכום_הוצאות_חודשיות[[#This Row],[קוד בספר ראשי]],אחר[תאריך הגשת הבקשה לשיק],\">=\"&DATEVALUE(\"1 \"&סיכום_הוצאות_חודשיות[[#Headers],[מאי]]&\" \"&_שנה),אחר[תאריך הגשת הבקשה לשיק],\"<=\"&H$4)","v":{"v":0,"d":"₪ 0.00"}},{"$f":"SUMIFS(הוצאות_מפורטות[סכום שיק],הוצאות_מפורטות[קוד בספר ראשי],סיכום_הוצאות_חודשיות[[#This Row],[קוד בספר ראשי]],הוצאות_מפורטות[תאריך חשבונית],\">=\"&I$3,הוצאות_מפורטות[תאריך חשבונית],\"<=\"&I$4)+SUMIFS(אחר[סכום שיק],אחר[קוד בספר ראשי],סיכום_הוצאות_חודשיות[[#This Row],[קוד בספר ראשי]],אחר[תאריך הגשת הבקשה לשיק],\">=\"&DATEVALUE(\"1 \"&סיכום_הוצאות_חודשיות[[#Headers],[יונ]]&\" \"&_שנה),אחר[תאריך הגשת הבקשה לשיק],\"<=\"&I$4)","v":{"v":0,"d":"₪ 0.00"}},{"$f":"SUMIFS(הוצאות_מפורטות[סכום שיק],הוצאות_מפורטות[קוד בספר ראשי],סיכום_הוצאות_חודשיות[[#This Row],[קוד בספר ראשי]],הוצאות_מפורטות[תאריך חשבונית],\">=\"&J$3,הוצאות_מפורטות[תאריך חשבונית],\"<=\"&J$4)+SUMIFS(אחר[סכום שיק],אחר[קוד בספר ראשי],סיכום_הוצאות_חודשיות[[#This Row],[קוד בספר ראשי]],אחר[תאריך הגשת הבקשה לשיק],\">=\"&DATEVALUE(\"1 \"&סיכום_הוצאות_חודשיות[[#Headers],[יולי]]&\" \"&_שנה),אחר[תאריך הגשת הבקשה לשיק],\"<=\"&J$4)","v":{"v":0,"d":"₪ 0.00"}},{"$f":"SUMIFS(הוצאות_מפורטות[סכום שיק],הוצאות_מפורטות[קוד בספר ראשי],סיכום_הוצאות_חודשיות[[#This Row],[קוד בספר ראשי]],הוצאות_מפורטות[תאריך חשבונית],\">=\"&K$3,הוצאות_מפורטות[תאריך חשבונית],\"<=\"&K$4)+SUMIFS(אחר[סכום שיק],אחר[קוד בספר ראשי],סיכום_הוצאות_חודשיות[[#This Row],[קוד בספר ראשי]],אחר[תאריך הגשת הבקשה לשיק],\">=\"&DATEVALUE(\"1 \"&סיכום_הוצאות_חודשיות[[#Headers],[אוגוסט]]&\" \"&_שנה),אחר[תאריך הגשת הבקשה לשיק],\"<=\"&K$4)","v":{"v":0,"d":"₪ 0.00"}},{"$f":"SUMIFS(הוצאות_מפורטות[סכום שיק],הוצאות_מפורטות[קוד בספר ראשי],סיכום_הוצאות_חודשיות[[#This Row],[קוד בספר ראשי]],הוצאות_מפורטות[תאריך חשבונית],\">=\"&L$3,הוצאות_מפורטות[תאריך חשבונית],\"<=\"&L$4)+SUMIFS(אחר[סכום שיק],אחר[קוד בספר ראשי],סיכום_הוצאות_חודשיות[[#This Row],[קוד בספר ראשי]],אחר[תאריך הגשת הבקשה לשיק],\">=\"&DATEVALUE(\"1 \"&סיכום_הוצאות_חודשיות[[#Headers],[ספטמבר]]&\" \"&_שנה),אחר[תאריך הגשת הבקשה לשיק],\"<=\"&L$4)","v":{"v":0,"d":"₪ 0.00"}},{"$f":"SUMIFS(הוצאות_מפורטות[סכום שיק],הוצאות_מפורטות[קוד בספר ראשי],סיכום_הוצאות_חודשיות[[#This Row],[קוד בספר ראשי]],הוצאות_מפורטות[תאריך חשבונית],\">=\"&M$3,הוצאות_מפורטות[תאריך חשבונית],\"<=\"&M$4)+SUMIFS(אחר[סכום שיק],אחר[קוד בספר ראשי],סיכום_הוצאות_חודשיות[[#This Row],[קוד בספר ראשי]],אחר[תאריך הגשת הבקשה לשיק],\">=\"&DATEVALUE(\"1 \"&סיכום_הוצאות_חודשיות[[#Headers],[אוקטובר]]&\" \"&_שנה),אחר[תאריך הגשת הבקשה לשיק],\"<=\"&M$4)","v":{"v":0,"d":"₪ 0.00"}},{"$f":"SUMIFS(הוצאות_מפורטות[סכום שיק],הוצאות_מפורטות[קוד בספר ראשי],סיכום_הוצאות_חודשיות[[#This Row],[קוד בספר ראשי]],הוצאות_מפורטות[תאריך חשבונית],\">=\"&N$3,הוצאות_מפורטות[תאריך חשבונית],\"<=\"&N$4)+SUMIFS(אחר[סכום שיק],אחר[קוד בספר ראשי],סיכום_הוצאות_חודשיות[[#This Row],[קוד בספר ראשי]],אחר[תאריך הגשת הבקשה לשיק],\">=\"&DATEVALUE(\"1 \"&סיכום_הוצאות_חודשיות[[#Headers],[נובמבר]]&\" \"&_שנה),אחר[תאריך הגשת הבקשה לשיק],\"<=\"&N$4)","v":{"v":0,"d":"₪ 0.00"}},{"$f":"SUMIFS(הוצאות_מפורטות[סכום שיק],הוצאות_מפורטות[קוד בספר ראשי],סיכום_הוצאות_חודשיות[[#This Row],[קוד בספר ראשי]],הוצאות_מפורטות[תאריך חשבונית],\">=\"&O$3,הוצאות_מפורטות[תאריך חשבונית],\"<=\"&O$4)+SUMIFS(אחר[סכום שיק],אחר[קוד בספר ראשי],סיכום_הוצאות_חודשיות[[#This Row],[קוד בספר ראשי]],אחר[תאריך הגשת הבקשה לשיק],\">=\"&DATEVALUE(\"1 \"&סיכום_הוצאות_חודשיות[[#Headers],[דצמבר]]&\" \"&_שנה),אחר[תאריך הגשת הבקשה לשיק],\"<=\"&O$4)","v":{"v":0,"d":"₪ 0.00"}},{"$f":"SUM(סיכום_הוצאות_חודשיות[[#This Row],[ינואר]:[דצמבר]])","v":{"v":0,"d":"₪ 0.00"}}]
[null,7000,"מחשבים",{"$f":"SUMIFS(הוצאות_מפורטות[סכום שיק],הוצאות_מפורטות[קוד בספר ראשי],סיכום_הוצאות_חודשיות[[#This Row],[קוד בספר ראשי]],הוצאות_מפורטות[תאריך חשבונית],\">=\"&D$3,הוצאות_מפורטות[תאריך חשבונית],\"<=\"&D$4)+SUMIFS(אחר[סכום שיק],אחר[קוד בספר ראשי],סיכום_הוצאות_חודשיות[[#This Row],[קוד בספר ראשי]],אחר[תאריך הגשת הבקשה לשיק],\">=\"&DATEVALUE(\"1 \"&סיכום_הוצאות_חודשיות[[#Headers],[ינואר]]&\" \"&_שנה),אחר[תאריך הגשת הבקשה לשיק],\"<=\"&D$4)","v":{"v":0,"d":"₪ 0.00"}},{"$f":"SUMIFS(הוצאות_מפורטות[סכום שיק],הוצאות_מפורטות[קוד בספר ראשי],סיכום_הוצאות_חודשיות[[#This Row],[קוד בספר ראשי]],הוצאות_מפורטות[תאריך חשבונית],\">=\"&E$3,הוצאות_מפורטות[תאריך חשבונית],\"<=\"&E$4)+SUMIFS(אחר[סכום שיק],אחר[קוד בספר ראשי],סיכום_הוצאות_חודשיות[[#This Row],[קוד בספר ראשי]],אחר[תאריך הגשת הבקשה לשיק],\">=\"&DATEVALUE(\"1 \"&סיכום_הוצאות_חודשיות[[#Headers],[פברואר]]&\" \"&_שנה),אחר[תאריך הגשת הבקשה לשיק],\"<=\"&E$4)","v":{"v":0,"d":"₪ 0.00"}},{"$f":"SUMIFS(הוצאות_מפורטות[סכום שיק],הוצאות_מפורטות[קוד בספר ראשי],סיכום_הוצאות_חודשיות[[#This Row],[קוד בספר ראשי]],הוצאות_מפורטות[תאריך חשבונית],\">=\"&F$3,הוצאות_מפורטות[תאריך חשבונית],\"<=\"&F$4)+SUMIFS(אחר[סכום שיק],אחר[קוד בספר ראשי],סיכום_הוצאות_חודשיות[[#This Row],[קוד בספר ראשי]],אחר[תאריך הגשת הבקשה לשיק],\">=\"&DATEVALUE(\"1 \"&סיכום_הוצאות_חודשיות[[#Headers],[מרץ]]&\" \"&_שנה),אחר[תאריך הגשת הבקשה לשיק],\"<=\"&F$4)","v":{"v":0,"d":"₪ 0.00"}},{"$f":"SUMIFS(הוצאות_מפורטות[סכום שיק],הוצאות_מפורטות[קוד בספר ראשי],סיכום_הוצאות_חודשיות[[#This Row],[קוד בספר ראשי]],הוצאות_מפורטות[תאריך חשבונית],\">=\"&G$3,הוצאות_מפורטות[תאריך חשבונית],\"<=\"&G$4)+SUMIFS(אחר[סכום שיק],אחר[קוד בספר ראשי],סיכום_הוצאות_חודשיות[[#This Row],[קוד בספר ראשי]],אחר[תאריך הגשת הבקשה לשיק],\">=\"&DATEVALUE(\"1 \"&סיכום_הוצאות_חודשיות[[#Headers],[אפר]]&\" \"&_שנה),אחר[תאריך הגשת הבקשה לשיק],\"<=\"&G$4)","v":{"v":0,"d":"₪ 0.00"}},{"$f":"SUMIFS(הוצאות_מפורטות[סכום שיק],הוצאות_מפורטות[קוד בספר ראשי],סיכום_הוצאות_חודשיות[[#This Row],[קוד בספר ראשי]],הוצאות_מפורטות[תאריך חשבונית],\">=\"&H$3,הוצאות_מפורטות[תאריך חשבונית],\"<=\"&H$4)+SUMIFS(אחר[סכום שיק],אחר[קוד בספר ראשי],סיכום_הוצאות_חודשיות[[#This Row],[קוד בספר ראשי]],אחר[תאריך הגשת הבקשה לשיק],\">=\"&DATEVALUE(\"1 \"&סיכום_הוצאות_חודשיות[[#Headers],[מאי]]&\" \"&_שנה),אחר[תאריך הגשת הבקשה לשיק],\"<=\"&H$4)","v":{"v":0,"d":"₪ 0.00"}},{"$f":"SUMIFS(הוצאות_מפורטות[סכום שיק],הוצאות_מפורטות[קוד בספר ראשי],סיכום_הוצאות_חודשיות[[#This Row],[קוד בספר ראשי]],הוצאות_מפורטות[תאריך חשבונית],\">=\"&I$3,הוצאות_מפורטות[תאריך חשבונית],\"<=\"&I$4)+SUMIFS(אחר[סכום שיק],אחר[קוד בספר ראשי],סיכום_הוצאות_חודשיות[[#This Row],[קוד בספר ראשי]],אחר[תאריך הגשת הבקשה לשיק],\">=\"&DATEVALUE(\"1 \"&סיכום_הוצאות_חודשיות[[#Headers],[יונ]]&\" \"&_שנה),אחר[תאריך הגשת הבקשה לשיק],\"<=\"&I$4)","v":{"v":0,"d":"₪ 0.00"}},{"$f":"SUMIFS(הוצאות_מפורטות[סכום שיק],הוצאות_מפורטות[קוד בספר ראשי],סיכום_הוצאות_חודשיות[[#This Row],[קוד בספר ראשי]],הוצאות_מפורטות[תאריך חשבונית],\">=\"&J$3,הוצאות_מפורטות[תאריך חשבונית],\"<=\"&J$4)+SUMIFS(אחר[סכום שיק],אחר[קוד בספר ראשי],סיכום_הוצאות_חודשיות[[#This Row],[קוד בספר ראשי]],אחר[תאריך הגשת הבקשה לשיק],\">=\"&DATEVALUE(\"1 \"&סיכום_הוצאות_חודשיות[[#Headers],[יולי]]&\" \"&_שנה),אחר[תאריך הגשת הבקשה לשיק],\"<=\"&J$4)","v":{"v":0,"d":"₪ 0.00"}},{"$f":"SUMIFS(הוצאות_מפורטות[סכום שיק],הוצאות_מפורטות[קוד בספר ראשי],סיכום_הוצאות_חודשיות[[#This Row],[קוד בספר ראשי]],הוצאות_מפורטות[תאריך חשבונית],\">=\"&K$3,הוצאות_מפורטות[תאריך חשבונית],\"<=\"&K$4)+SUMIFS(אחר[סכום שיק],אחר[קוד בספר ראשי],סיכום_הוצאות_חודשיות[[#This Row],[קוד בספר ראשי]],אחר[תאריך הגשת הבקשה לשיק],\">=\"&DATEVALUE(\"1 \"&סיכום_הוצאות_חודשיות[[#Headers],[אוגוסט]]&\" \"&_שנה),אחר[תאריך הגשת הבקשה לשיק],\"<=\"&K$4)","v":{"v":0,"d":"₪ 0.00"}},{"$f":"SUMIFS(הוצאות_מפורטות[סכום שיק],הוצאות_מפורטות[קוד בספר ראשי],סיכום_הוצאות_חודשיות[[#This Row],[קוד בספר ראשי]],הוצאות_מפורטות[תאריך חשבונית],\">=\"&L$3,הוצאות_מפורטות[תאריך חשבונית],\"<=\"&L$4)+SUMIFS(אחר[סכום שיק],אחר[קוד בספר ראשי],סיכום_הוצאות_חודשיות[[#This Row],[קוד בספר ראשי]],אחר[תאריך הגשת הבקשה לשיק],\">=\"&DATEVALUE(\"1 \"&סיכום_הוצאות_חודשיות[[#Headers],[ספטמבר]]&\" \"&_שנה),אחר[תאריך הגשת הבקשה לשיק],\"<=\"&L$4)","v":{"v":0,"d":"₪ 0.00"}},{"$f":"SUMIFS(הוצאות_מפורטות[סכום שיק],הוצאות_מפורטות[קוד בספר ראשי],סיכום_הוצאות_חודשיות[[#This Row],[קוד בספר ראשי]],הוצאות_מפורטות[תאריך חשבונית],\">=\"&M$3,הוצאות_מפורטות[תאריך חשבונית],\"<=\"&M$4)+SUMIFS(אחר[סכום שיק],אחר[קוד בספר ראשי],סיכום_הוצאות_חודשיות[[#This Row],[קוד בספר ראשי]],אחר[תאריך הגשת הבקשה לשיק],\">=\"&DATEVALUE(\"1 \"&סיכום_הוצאות_חודשיות[[#Headers],[אוקטובר]]&\" \"&_שנה),אחר[תאריך הגשת הבקשה לשיק],\"<=\"&M$4)","v":{"v":0,"d":"₪ 0.00"}},{"$f":"SUMIFS(הוצאות_מפורטות[סכום שיק],הוצאות_מפורטות[קוד בספר ראשי],סיכום_הוצאות_חודשיות[[#This Row],[קוד בספר ראשי]],הוצאות_מפורטות[תאריך חשבונית],\">=\"&N$3,הוצאות_מפורטות[תאריך חשבונית],\"<=\"&N$4)+SUMIFS(אחר[סכום שיק],אחר[קוד בספר ראשי],סיכום_הוצאות_חודשיות[[#This Row],[קוד בספר ראשי]],אחר[תאריך הגשת הבקשה לשיק],\">=\"&DATEVALUE(\"1 \"&סיכום_הוצאות_חודשיות[[#Headers],[נובמבר]]&\" \"&_שנה),אחר[תאריך הגשת הבקשה לשיק],\"<=\"&N$4)","v":{"v":0,"d":"₪ 0.00"}},{"$f":"SUMIFS(הוצאות_מפורטות[סכום שיק],הוצאות_מפורטות[קוד בספר ראשי],סיכום_הוצאות_חודשיות[[#This Row],[קוד בספר ראשי]],הוצאות_מפורטות[תאריך חשבונית],\">=\"&O$3,הוצאות_מפורטות[תאריך חשבונית],\"<=\"&O$4)+SUMIFS(אחר[סכום שיק],אחר[קוד בספר ראשי],סיכום_הוצאות_חודשיות[[#This Row],[קוד בספר ראשי]],אחר[תאריך הגשת הבקשה לשיק],\">=\"&DATEVALUE(\"1 \"&סיכום_הוצאות_חודשיות[[#Headers],[דצמבר]]&\" \"&_שנה),אחר[תאריך הגשת הבקשה לשיק],\"<=\"&O$4)","v":{"v":0,"d":"₪ 0.00"}},{"$f":"SUM(סיכום_הוצאות_חודשיות[[#This Row],[ינואר]:[דצמבר]])","v":{"v":0,"d":"₪ 0.00"}}]
[null,8000,"ביטוח רפואי",{"$f":"SUMIFS(הוצאות_מפורטות[סכום שיק],הוצאות_מפורטות[קוד בספר ראשי],סיכום_הוצאות_חודשיות[[#This Row],[קוד בספר ראשי]],הוצאות_מפורטות[תאריך חשבונית],\">=\"&D$3,הוצאות_מפורטות[תאריך חשבונית],\"<=\"&D$4)+SUMIFS(אחר[סכום שיק],אחר[קוד בספר ראשי],סיכום_הוצאות_חודשיות[[#This Row],[קוד בספר ראשי]],אחר[תאריך הגשת הבקשה לשיק],\">=\"&DATEVALUE(\"1 \"&סיכום_הוצאות_חודשיות[[#Headers],[ינואר]]&\" \"&_שנה),אחר[תאריך הגשת הבקשה לשיק],\"<=\"&D$4)","v":{"v":0,"d":"₪ 0.00"}},{"$f":"SUMIFS(הוצאות_מפורטות[סכום שיק],הוצאות_מפורטות[קוד בספר ראשי],סיכום_הוצאות_חודשיות[[#This Row],[קוד בספר ראשי]],הוצאות_מפורטות[תאריך חשבונית],\">=\"&E$3,הוצאות_מפורטות[תאריך חשבונית],\"<=\"&E$4)+SUMIFS(אחר[סכום שיק],אחר[קוד בספר ראשי],סיכום_הוצאות_חודשיות[[#This Row],[קוד בספר ראשי]],אחר[תאריך הגשת הבקשה לשיק],\">=\"&DATEVALUE(\"1 \"&סיכום_הוצאות_חודשיות[[#Headers],[פברואר]]&\" \"&_שנה),אחר[תאריך הגשת הבקשה לשיק],\"<=\"&E$4)","v":{"v":0,"d":"₪ 0.00"}},{"$f":"SUMIFS(הוצאות_מפורטות[סכום שיק],הוצאות_מפורטות[קוד בספר ראשי],סיכום_הוצאות_חודשיות[[#This Row],[קוד בספר ראשי]],הוצאות_מפורטות[תאריך חשבונית],\">=\"&F$3,הוצאות_מפורטות[תאריך חשבונית],\"<=\"&F$4)+SUMIFS(אחר[סכום שיק],אחר[קוד בספר ראשי],סיכום_הוצאות_חודשיות[[#This Row],[קוד בספר ראשי]],אחר[תאריך הגשת הבקשה לשיק],\">=\"&DATEVALUE(\"1 \"&סיכום_הוצאות_חודשיות[[#Headers],[מרץ]]&\" \"&_שנה),אחר[תאריך הגשת הבקשה לשיק],\"<=\"&F$4)","v":{"v":0,"d":"₪ 0.00"}},{"$f":"SUMIFS(הוצאות_מפורטות[סכום שיק],הוצאות_מפורטות[קוד בספר ראשי],סיכום_הוצאות_חודשיות[[#This Row],[קוד בספר ראשי]],הוצאות_מפורטות[תאריך חשבונית],\">=\"&G$3,הוצאות_מפורטות[תאריך חשבונית],\"<=\"&G$4)+SUMIFS(אחר[סכום שיק],אחר[קוד בספר ראשי],סיכום_הוצאות_חודשיות[[#This Row],[קוד בספר ראשי]],אחר[תאריך הגשת הבקשה לשיק],\">=\"&DATEVALUE(\"1 \"&סיכום_הוצאות_חודשיות[[#Headers],[אפר]]&\" \"&_שנה),אחר[תאריך הגשת הבקשה לשיק],\"<=\"&G$4)","v":{"v":0,"d":"₪ 0.00"}},{"$f":"SUMIFS(הוצאות_מפורטות[סכום שיק],הוצאות_מפורטות[קוד בספר ראשי],סיכום_הוצאות_חודשיות[[#This Row],[קוד בספר ראשי]],הוצאות_מפורטות[תאריך חשבונית],\">=\"&H$3,הוצאות_מפורטות[תאריך חשבונית],\"<=\"&H$4)+SUMIFS(אחר[סכום שיק],אחר[קוד בספר ראשי],סיכום_הוצאות_חודשיות[[#This Row],[קוד בספר ראשי]],אחר[תאריך הגשת הבקשה לשיק],\">=\"&DATEVALUE(\"1 \"&סיכום_הוצאות_חודשיות[[#Headers],[מאי]]&\" \"&_שנה),אחר[תאריך הגשת הבקשה לשיק],\"<=\"&H$4)","v":{"v":0,"d":"₪ 0.00"}},{"$f":"SUMIFS(הוצאות_מפורטות[סכום שיק],הוצאות_מפורטות[קוד בספר ראשי],סיכום_הוצאות_חודשיות[[#This Row],[קוד בספר ראשי]],הוצאות_מפורטות[תאריך חשבונית],\">=\"&I$3,הוצאות_מפורטות[תאריך חשבונית],\"<=\"&I$4)+SUMIFS(אחר[סכום שיק],אחר[קוד בספר ראשי],סיכום_הוצאות_חודשיות[[#This Row],[קוד בספר ראשי]],אחר[תאריך הגשת הבקשה לשיק],\">=\"&DATEVALUE(\"1 \"&סיכום_הוצאות_חודשיות[[#Headers],[יונ]]&\" \"&_שנה),אחר[תאריך הגשת הבקשה לשיק],\"<=\"&I$4)","v":{"v":0,"d":"₪ 0.00"}},{"$f":"SUMIFS(הוצאות_מפורטות[סכום שיק],הוצאות_מפורטות[קוד בספר ראשי],סיכום_הוצאות_חודשיות[[#This Row],[קוד בספר ראשי]],הוצאות_מפורטות[תאריך חשבונית],\">=\"&J$3,הוצאות_מפורטות[תאריך חשבונית],\"<=\"&J$4)+SUMIFS(אחר[סכום שיק],אחר[קוד בספר ראשי],סיכום_הוצאות_חודשיות[[#This Row],[קוד בספר ראשי]],אחר[תאריך הגשת הבקשה לשיק],\">=\"&DATEVALUE(\"1 \"&סיכום_הוצאות_חודשיות[[#Headers],[יולי]]&\" \"&_שנה),אחר[תאריך הגשת הבקשה לשיק],\"<=\"&J$4)","v":{"v":0,"d":"₪ 0.00"}},{"$f":"SUMIFS(הוצאות_מפורטות[סכום שיק],הוצאות_מפורטות[קוד בספר ראשי],סיכום_הוצאות_חודשיות[[#This Row],[קוד בספר ראשי]],הוצאות_מפורטות[תאריך חשבונית],\">=\"&K$3,הוצאות_מפורטות[תאריך חשבונית],\"<=\"&K$4)+SUMIFS(אחר[סכום שיק],אחר[קוד בספר ראשי],סיכום_הוצאות_חודשיות[[#This Row],[קוד בספר ראשי]],אחר[תאריך הגשת הבקשה לשיק],\">=\"&DATEVALUE(\"1 \"&סיכום_הוצאות_חודשיות[[#Headers],[אוגוסט]]&\" \"&_שנה),אחר[תאריך הגשת הבקשה לשיק],\"<=\"&K$4)","v":{"v":0,"d":"₪ 0.00"}},{"$f":"SUMIFS(הוצאות_מפורטות[סכום שיק],הוצאות_מפורטות[קוד בספר ראשי],סיכום_הוצאות_חודשיות[[#This Row],[קוד בספר ראשי]],הוצאות_מפורטות[תאריך חשבונית],\">=\"&L$3,הוצאות_מפורטות[תאריך חשבונית],\"<=\"&L$4)+SUMIFS(אחר[סכום שיק],אחר[קוד בספר ראשי],סיכום_הוצאות_חודשיות[[#This Row],[קוד בספר ראשי]],אחר[תאריך הגשת הבקשה לשיק],\">=\"&DATEVALUE(\"1 \"&סיכום_הוצאות_חודשיות[[#Headers],[ספטמבר]]&\" \"&_שנה),אחר[תאריך הגשת הבקשה לשיק],\"<=\"&L$4)","v":{"v":0,"d":"₪ 0.00"}},{"$f":"SUMIFS(הוצאות_מפורטות[סכום שיק],הוצאות_מפורטות[קוד בספר ראשי],סיכום_הוצאות_חודשיות[[#This Row],[קוד בספר ראשי]],הוצאות_מפורטות[תאריך חשבונית],\">=\"&M$3,הוצאות_מפורטות[תאריך חשבונית],\"<=\"&M$4)+SUMIFS(אחר[סכום שיק],אחר[קוד בספר ראשי],סיכום_הוצאות_חודשיות[[#This Row],[קוד בספר ראשי]],אחר[תאריך הגשת הבקשה לשיק],\">=\"&DATEVALUE(\"1 \"&סיכום_הוצאות_חודשיות[[#Headers],[אוקטובר]]&\" \"&_שנה),אחר[תאריך הגשת הבקשה לשיק],\"<=\"&M$4)","v":{"v":0,"d":"₪ 0.00"}},{"$f":"SUMIFS(הוצאות_מפורטות[סכום שיק],הוצאות_מפורטות[קוד בספר ראשי],סיכום_הוצאות_חודשיות[[#This Row],[קוד בספר ראשי]],הוצאות_מפורטות[תאריך חשבונית],\">=\"&N$3,הוצאות_מפורטות[תאריך חשבונית],\"<=\"&N$4)+SUMIFS(אחר[סכום שיק],אחר[קוד בספר ראשי],סיכום_הוצאות_חודשיות[[#This Row],[קוד בספר ראשי]],אחר[תאריך הגשת הבקשה לשיק],\">=\"&DATEVALUE(\"1 \"&סיכום_הוצאות_חודשיות[[#Headers],[נובמבר]]&\" \"&_שנה),אחר[תאריך הגשת הבקשה לשיק],\"<=\"&N$4)","v":{"v":0,"d":"₪ 0.00"}},{"$f":"SUMIFS(הוצאות_מפורטות[סכום שיק],הוצאות_מפורטות[קוד בספר ראשי],סיכום_הוצאות_חודשיות[[#This Row],[קוד בספר ראשי]],הוצאות_מפורטות[תאריך חשבונית],\">=\"&O$3,הוצאות_מפורטות[תאריך חשבונית],\"<=\"&O$4)+SUMIFS(אחר[סכום שיק],אחר[קוד בספר ראשי],סיכום_הוצאות_חודשיות[[#This Row],[קוד בספר ראשי]],אחר[תאריך הגשת הבקשה לשיק],\">=\"&DATEVALUE(\"1 \"&סיכום_הוצאות_חודשיות[[#Headers],[דצמבר]]&\" \"&_שנה),אחר[תאריך הגשת הבקשה לשיק],\"<=\"&O$4)","v":{"v":0,"d":"₪ 0.00"}},{"$f":"SUM(סיכום_הוצאות_חודשיות[[#This Row],[ינואר]:[דצמבר]])","v":{"v":0,"d":"₪ 0.00"}}]
[null,9000,"עלויות בניין",{"$f":"SUMIFS(הוצאות_מפורטות[סכום שיק],הוצאות_מפורטות[קוד בספר ראשי],סיכום_הוצאות_חודשיות[[#This Row],[קוד בספר ראשי]],הוצאות_מפורטות[תאריך חשבונית],\">=\"&D$3,הוצאות_מפורטות[תאריך חשבונית],\"<=\"&D$4)+SUMIFS(אחר[סכום שיק],אחר[קוד בספר ראשי],סיכום_הוצאות_חודשיות[[#This Row],[קוד בספר ראשי]],אחר[תאריך הגשת הבקשה לשיק],\">=\"&DATEVALUE(\"1 \"&סיכום_הוצאות_חודשיות[[#Headers],[ינואר]]&\" \"&_שנה),אחר[תאריך הגשת הבקשה לשיק],\"<=\"&D$4)","v":{"v":0,"d":"₪ 0.00"}},{"$f":"SUMIFS(הוצאות_מפורטות[סכום שיק],הוצאות_מפורטות[קוד בספר ראשי],סיכום_הוצאות_חודשיות[[#This Row],[קוד בספר ראשי]],הוצאות_מפורטות[תאריך חשבונית],\">=\"&E$3,הוצאות_מפורטות[תאריך חשבונית],\"<=\"&E$4)+SUMIFS(אחר[סכום שיק],אחר[קוד בספר ראשי],סיכום_הוצאות_חודשיות[[#This Row],[קוד בספר ראשי]],אחר[תאריך הגשת הבקשה לשיק],\">=\"&DATEVALUE(\"1 \"&סיכום_הוצאות_חודשיות[[#Headers],[פברואר]]&\" \"&_שנה),אחר[תאריך הגשת הבקשה לשיק],\"<=\"&E$4)","v":{"v":0,"d":"₪ 0.00"}},{"$f":"SUMIFS(הוצאות_מפורטות[סכום שיק],הוצאות_מפורטות[קוד בספר ראשי],סיכום_הוצאות_חודשיות[[#This Row],[קוד בספר ראשי]],הוצאות_מפורטות[תאריך חשבונית],\">=\"&F$3,הוצאות_מפורטות[תאריך חשבונית],\"<=\"&F$4)+SUMIFS(אחר[סכום שיק],אחר[קוד בספר ראשי],סיכום_הוצאות_חודשיות[[#This Row],[קוד בספר ראשי]],אחר[תאריך הגשת הבקשה לשיק],\">=\"&DATEVALUE(\"1 \"&סיכום_הוצאות_חודשיות[[#Headers],[מרץ]]&\" \"&_שנה),אחר[תאריך הגשת הבקשה לשיק],\"<=\"&F$4)","v":{"v":0,"d":"₪ 0.00"}},{"$f":"SUMIFS(הוצאות_מפורטות[סכום שיק],הוצאות_מפורטות[קוד בספר ראשי],סיכום_הוצאות_חודשיות[[#This Row],[קוד בספר ראשי]],הוצאות_מפורטות[תאריך חשבונית],\">=\"&G$3,הוצאות_מפורטות[תאריך חשבונית],\"<=\"&G$4)+SUMIFS(אחר[סכום שיק],אחר[קוד בספר ראשי],סיכום_הוצאות_חודשיות[[#This Row],[קוד בספר ראשי]],אחר[תאריך הגשת הבקשה לשיק],\">=\"&DATEVALUE(\"1 \"&סיכום_הוצאות_חודשיות[[#Headers],[אפר]]&\" \"&_שנה),אחר[תאריך הגשת הבקשה לשיק],\"<=\"&G$4)","v":{"v":0,"d":"₪ 0.00"}},{"$f":"SUMIFS(הוצאות_מפורטות[סכום שיק],הוצאות_מפורטות[קוד בספר ראשי],סיכום_הוצאות_חודשיות[[#This Row],[קוד בספר ראשי]],הוצאות_מפורטות[תאריך חשבונית],\">=\"&H$3,הוצאות_מפורטות[תאריך חשבונית],\"<=\"&H$4)+SUMIFS(אחר[סכום שיק],אחר[קוד בספר ראשי],סיכום_הוצאות_חודשיות[[#This Row],[קוד בספר ראשי]],אחר[תאריך הגשת הבקשה לשיק],\">=\"&DATEVALUE(\"1 \"&סיכום_הוצאות_חודשיות[[#Headers],[מאי]]&\" \"&_שנה),אחר[תאריך הגשת הבקשה לשיק],\"<=\"&H$4)","v":{"v":0,"d":"₪ 0.00"}},{"$f":"SUMIFS(הוצאות_מפורטות[סכום שיק],הוצאות_מפורטות[קוד בספר ראשי],סיכום_הוצאות_חודשיות[[#This Row],[קוד בספר ראשי]],הוצאות_מפורטות[תאריך חשבונית],\">=\"&I$3,הוצאות_מפורטות[תאריך חשבונית],\"<=\"&I$4)+SUMIFS(אחר[סכום שיק],אחר[קוד בספר ראשי],סיכום_הוצאות_חודשיות[[#This Row],[קוד בספר ראשי]],אחר[תאריך הגשת הבקשה לשיק],\">=\"&DATEVALUE(\"1 \"&סיכום_הוצאות_חודשיות[[#Headers],[יונ]]&\" \"&_שנה),אחר[תאריך הגשת הבקשה לשיק],\"<=\"&I$4)","v":{"v":0,"d":"₪ 0.00"}},{"$f":"SUMIFS(הוצאות_מפורטות[סכום שיק],הוצאות_מפורטות[קוד בספר ראשי],סיכום_הוצאות_חודשיות[[#This Row],[קוד בספר ראשי]],הוצאות_מפורטות[תאריך חשבונית],\">=\"&J$3,הוצאות_מפורטות[תאריך חשבונית],\"<=\"&J$4)+SUMIFS(אחר[סכום שיק],אחר[קוד בספר ראשי],סיכום_הוצאות_חודשיות[[#This Row],[קוד בספר ראשי]],אחר[תאריך הגשת הבקשה לשיק],\">=\"&DATEVALUE(\"1 \"&סיכום_הוצאות_חודשיות[[#Headers],[יולי]]&\" \"&_שנה),אחר[תאריך הגשת הבקשה לשיק],\"<=\"&J$4)","v":{"v":0,"d":"₪ 0.00"}},{"$f":"SUMIFS(הוצאות_מפורטות[סכום שיק],הוצאות_מפורטות[קוד בספר ראשי],סיכום_הוצאות_חודשיות[[#This Row],[קוד בספר ראשי]],הוצאות_מפורטות[תאריך חשבונית],\">=\"&K$3,הוצאות_מפורטות[תאריך חשבונית],\"<=\"&K$4)+SUMIFS(אחר[סכום שיק],אחר[קוד בספר ראשי],סיכום_הוצאות_חודשיות[[#This Row],[קוד בספר ראשי]],אחר[תאריך הגשת הבקשה לשיק],\">=\"&DATEVALUE(\"1 \"&סיכום_הוצאות_חודשיות[[#Headers],[אוגוסט]]&\" \"&_שנה),אחר[תאריך הגשת הבקשה לשיק],\"<=\"&K$4)","v":{"v":0,"d":"₪ 0.00"}},{"$f":"SUMIFS(הוצאות_מפורטות[סכום שיק],הוצאות_מפורטות[קוד בספר ראשי],סיכום_הוצאות_חודשיות[[#This Row],[קוד בספר ראשי]],הוצאות_מפורטות[תאריך חשבונית],\">=\"&L$3,הוצאות_מפורטות[תאריך חשבונית],\"<=\"&L$4)+SUMIFS(אחר[סכום שיק],אחר[קוד בספר ראשי],סיכום_הוצאות_חודשיות[[#This Row],[קוד בספר ראשי]],אחר[תאריך הגשת הבקשה לשיק],\">=\"&DATEVALUE(\"1 \"&סיכום_הוצאות_חודשיות[[#Headers],[ספטמבר]]&\" \"&_שנה),אחר[תאריך הגשת הבקשה לשיק],\"<=\"&L$4)","v":{"v":0,"d":"₪ 0.00"}},{"$f":"SUMIFS(הוצאות_מפורטות[סכום שיק],הוצאות_מפורטות[קוד בספר ראשי],סיכום_הוצאות_חודשיות[[#This Row],[קוד בספר ראשי]],הוצאות_מפורטות[תאריך חשבונית],\">=\"&M$3,הוצאות_מפורטות[תאריך חשבונית],\"<=\"&M$4)+SUMIFS(אחר[סכום שיק],אחר[קוד בספר ראשי],סיכום_הוצאות_חודשיות[[#This Row],[קוד בספר ראשי]],אחר[תאריך הגשת הבקשה לשיק],\">=\"&DATEVALUE(\"1 \"&סיכום_הוצאות_חודשיות[[#Headers],[אוקטובר]]&\" \"&_שנה),אחר[תאריך הגשת הבקשה לשיק],\"<=\"&M$4)","v":{"v":0,"d":"₪ 0.00"}},{"$f":"SUMIFS(הוצאות_מפורטות[סכום שיק],הוצאות_מפורטות[קוד בספר ראשי],סיכום_הוצאות_חודשיות[[#This Row],[קוד בספר ראשי]],הוצאות_מפורטות[תאריך חשבונית],\">=\"&N$3,הוצאות_מפורטות[תאריך חשבונית],\"<=\"&N$4)+SUMIFS(אחר[סכום שיק],אחר[קוד בספר ראשי],סיכום_הוצאות_חודשיות[[#This Row],[קוד בספר ראשי]],אחר[תאריך הגשת הבקשה לשיק],\">=\"&DATEVALUE(\"1 \"&סיכום_הוצאות_חודשיות[[#Headers],[נובמבר]]&\" \"&_שנה),אחר[תאריך הגשת הבקשה לשיק],\"<=\"&N$4)","v":{"v":0,"d":"₪ 0.00"}},{"$f":"SUMIFS(הוצאות_מפורטות[סכום שיק],הוצאות_מפורטות[קוד בספר ראשי],סיכום_הוצאות_חודשיות[[#This Row],[קוד בספר ראשי]],הוצאות_מפורטות[תאריך חשבונית],\">=\"&O$3,הוצאות_מפורטות[תאריך חשבונית],\"<=\"&O$4)+SUMIFS(אחר[סכום שיק],אחר[קוד בספר ראשי],סיכום_הוצאות_חודשיות[[#This Row],[קוד בספר ראשי]],אחר[תאריך הגשת הבקשה לשיק],\">=\"&DATEVALUE(\"1 \"&סיכום_הוצאות_חודשיות[[#Headers],[דצמבר]]&\" \"&_שנה),אחר[תאריך הגשת הבקשה לשיק],\"<=\"&O$4)","v":{"v":0,"d":"₪ 0.00"}},{"$f":"SUM(סיכום_הוצאות_חודשיות[[#This Row],[ינואר]:[דצמבר]])","v":{"v":0,"d":"₪ 0.00"}}]
[null,10000,"שיווק",{"$f":"SUMIFS(הוצאות_מפורטות[סכום שיק],הוצאות_מפורטות[קוד בספר ראשי],סיכום_הוצאות_חודשיות[[#This Row],[קוד בספר ראשי]],הוצאות_מפורטות[תאריך חשבונית],\">=\"&D$3,הוצאות_מפורטות[תאריך חשבונית],\"<=\"&D$4)+SUMIFS(אחר[סכום שיק],אחר[קוד בספר ראשי],סיכום_הוצאות_חודשיות[[#This Row],[קוד בספר ראשי]],אחר[תאריך הגשת הבקשה לשיק],\">=\"&DATEVALUE(\"1 \"&סיכום_הוצאות_חודשיות[[#Headers],[ינואר]]&\" \"&_שנה),אחר[תאריך הגשת הבקשה לשיק],\"<=\"&D$4)","v":{"v":0,"d":"₪ 0.00"}},{"$f":"SUMIFS(הוצאות_מפורטות[סכום שיק],הוצאות_מפורטות[קוד בספר ראשי],סיכום_הוצאות_חודשיות[[#This Row],[קוד בספר ראשי]],הוצאות_מפורטות[תאריך חשבונית],\">=\"&E$3,הוצאות_מפורטות[תאריך חשבונית],\"<=\"&E$4)+SUMIFS(אחר[סכום שיק],אחר[קוד בספר ראשי],סיכום_הוצאות_חודשיות[[#This Row],[קוד בספר ראשי]],אחר[תאריך הגשת הבקשה לשיק],\">=\"&DATEVALUE(\"1 \"&סיכום_הוצאות_חודשיות[[#Headers],[פברואר]]&\" \"&_שנה),אחר[תאריך הגשת הבקשה לשיק],\"<=\"&E$4)","v":{"v":0,"d":"₪ 0.00"}},{"$f":"SUMIFS(הוצאות_מפורטות[סכום שיק],הוצאות_מפורטות[קוד בספר ראשי],סיכום_הוצאות_חודשיות[[#This Row],[קוד בספר ראשי]],הוצאות_מפורטות[תאריך חשבונית],\">=\"&F$3,הוצאות_מפורטות[תאריך חשבונית],\"<=\"&F$4)+SUMIFS(אחר[סכום שיק],אחר[קוד בספר ראשי],סיכום_הוצאות_חודשיות[[#This Row],[קוד בספר ראשי]],אחר[תאריך הגשת הבקשה לשיק],\">=\"&DATEVALUE(\"1 \"&סיכום_הוצאות_חודשיות[[#Headers],[מרץ]]&\" \"&_שנה),אחר[תאריך הגשת הבקשה לשיק],\"<=\"&F$4)","v":{"v":0,"d":"₪ 0.00"}},{"$f":"SUMIFS(הוצאות_מפורטות[סכום שיק],הוצאות_מפורטות[קוד בספר ראשי],סיכום_הוצאות_חודשיות[[#This Row],[קוד בספר ראשי]],הוצאות_מפורטות[תאריך חשבונית],\">=\"&G$3,הוצאות_מפורטות[תאריך חשבונית],\"<=\"&G$4)+SUMIFS(אחר[סכום שיק],אחר[קוד בספר ראשי],סיכום_הוצאות_חודשיות[[#This Row],[קוד בספר ראשי]],אחר[תאריך הגשת הבקשה לשיק],\">=\"&DATEVALUE(\"1 \"&סיכום_הוצאות_חודשיות[[#Headers],[אפר]]&\" \"&_שנה),אחר[תאריך הגשת הבקשה לשיק],\"<=\"&G$4)","v":{"v":0,"d":"₪ 0.00"}},{"$f":"SUMIFS(הוצאות_מפורטות[סכום שיק],הוצאות_מפורטות[קוד בספר ראשי],סיכום_הוצאות_חודשיות[[#This Row],[קוד בספר ראשי]],הוצאות_מפורטות[תאריך חשבונית],\">=\"&H$3,הוצאות_מפורטות[תאריך חשבונית],\"<=\"&H$4)+SUMIFS(אחר[סכום שיק],אחר[קוד בספר ראשי],סיכום_הוצאות_חודשיות[[#This Row],[קוד בספר ראשי]],אחר[תאריך הגשת הבקשה לשיק],\">=\"&DATEVALUE(\"1 \"&סיכום_הוצאות_חודשיות[[#Headers],[מאי]]&\" \"&_שנה),אחר[תאריך הגשת הבקשה לשיק],\"<=\"&H$4)","v":{"v":0,"d":"₪ 0.00"}},{"$f":"SUMIFS(הוצאות_מפורטות[סכום שיק],הוצאות_מפורטות[קוד בספר ראשי],סיכום_הוצאות_חודשיות[[#This Row],[קוד בספר ראשי]],הוצאות_מפורטות[תאריך חשבונית],\">=\"&I$3,הוצאות_מפורטות[תאריך חשבונית],\"<=\"&I$4)+SUMIFS(אחר[סכום שיק],אחר[קוד בספר ראשי],סיכום_הוצאות_חודשיות[[#This Row],[קוד בספר ראשי]],אחר[תאריך הגשת הבקשה לשיק],\">=\"&DATEVALUE(\"1 \"&סיכום_הוצאות_חודשיות[[#Headers],[יונ]]&\" \"&_שנה),אחר[תאריך הגשת הבקשה לשיק],\"<=\"&I$4)","v":{"v":0,"d":"₪ 0.00"}},{"$f":"SUMIFS(הוצאות_מפורטות[סכום שיק],הוצאות_מפורטות[קוד בספר ראשי],סיכום_הוצאות_חודשיות[[#This Row],[קוד בספר ראשי]],הוצאות_מפורטות[תאריך חשבונית],\">=\"&J$3,הוצאות_מפורטות[תאריך חשבונית],\"<=\"&J$4)+SUMIFS(אחר[סכום שיק],אחר[קוד בספר ראשי],סיכום_הוצאות_חודשיות[[#This Row],[קוד בספר ראשי]],אחר[תאריך הגשת הבקשה לשיק],\">=\"&DATEVALUE(\"1 \"&סיכום_הוצאות_חודשיות[[#Headers],[יולי]]&\" \"&_שנה),אחר[תאריך הגשת הבקשה לשיק],\"<=\"&J$4)","v":{"v":0,"d":"₪ 0.00"}},{"$f":"SUMIFS(הוצאות_מפורטות[סכום שיק],הוצאות_מפורטות[קוד בספר ראשי],סיכום_הוצאות_חודשיות[[#This Row],[קוד בספר ראשי]],הוצאות_מפורטות[תאריך חשבונית],\">=\"&K$3,הוצאות_מפורטות[תאריך חשבונית],\"<=\"&K$4)+SUMIFS(אחר[סכום שיק],אחר[קוד בספר ראשי],סיכום_הוצאות_חודשיות[[#This Row],[קוד בספר ראשי]],אחר[תאריך הגשת הבקשה לשיק],\">=\"&DATEVALUE(\"1 \"&סיכום_הוצאות_חודשיות[[#Headers],[אוגוסט]]&\" \"&_שנה),אחר[תאריך הגשת הבקשה לשיק],\"<=\"&K$4)","v":{"v":0,"d":"₪ 0.00"}},{"$f":"SUMIFS(הוצאות_מפורטות[סכום שיק],הוצאות_מפורטות[קוד בספר ראשי],סיכום_הוצאות_חודשיות[[#This Row],[קוד בספר ראשי]],הוצאות_מפורטות[תאריך חשבונית],\">=\"&L$3,הוצאות_מפורטות[תאריך חשבונית],\"<=\"&L$4)+SUMIFS(אחר[סכום שיק],אחר[קוד בספר ראשי],סיכום_הוצאות_חודשיות[[#This Row],[קוד בספר ראשי]],אחר[תאריך הגשת הבקשה לשיק],\">=\"&DATEVALUE(\"1 \"&סיכום_הוצאות_חודשיות[[#Headers],[ספטמבר]]&\" \"&_שנה),אחר[תאריך הגשת הבקשה לשיק],\"<=\"&L$4)","v":{"v":0,"d":"₪ 0.00"}},{"$f":"SUMIFS(הוצאות_מפורטות[סכום שיק],הוצאות_מפורטות[קוד בספר ראשי],סיכום_הוצאות_חודשיות[[#This Row],[קוד בספר ראשי]],הוצאות_מפורטות[תאריך חשבונית],\">=\"&M$3,הוצאות_מפורטות[תאריך חשבונית],\"<=\"&M$4)+SUMIFS(אחר[סכום שיק],אחר[קוד בספר ראשי],סיכום_הוצאות_חודשיות[[#This Row],[קוד בספר ראשי]],אחר[תאריך הגשת הבקשה לשיק],\">=\"&DATEVALUE(\"1 \"&סיכום_הוצאות_חודשיות[[#Headers],[אוקטובר]]&\" \"&_שנה),אחר[תאריך הגשת הבקשה לשיק],\"<=\"&M$4)","v":{"v":0,"d":"₪ 0.00"}},{"$f":"SUMIFS(הוצאות_מפורטות[סכום שיק],הוצאות_מפורטות[קוד בספר ראשי],סיכום_הוצאות_חודשיות[[#This Row],[קוד בספר ראשי]],הוצאות_מפורטות[תאריך חשבונית],\">=\"&N$3,הוצאות_מפורטות[תאריך חשבונית],\"<=\"&N$4)+SUMIFS(אחר[סכום שיק],אחר[קוד בספר ראשי],סיכום_הוצאות_חודשיות[[#This Row],[קוד בספר ראשי]],אחר[תאריך הגשת הבקשה לשיק],\">=\"&DATEVALUE(\"1 \"&סיכום_הוצאות_חודשיות[[#Headers],[נובמבר]]&\" \"&_שנה),אחר[תאריך הגשת הבקשה לשיק],\"<=\"&N$4)","v":{"v":0,"d":"₪ 0.00"}},{"$f":"SUMIFS(הוצאות_מפורטות[סכום שיק],הוצאות_מפורטות[קוד בספר ראשי],סיכום_הוצאות_חודשיות[[#This Row],[קוד בספר ראשי]],הוצאות_מפורטות[תאריך חשבונית],\">=\"&O$3,הוצאות_מפורטות[תאריך חשבונית],\"<=\"&O$4)+SUMIFS(אחר[סכום שיק],אחר[קוד בספר ראשי],סיכום_הוצאות_חודשיות[[#This Row],[קוד בספר ראשי]],אחר[תאריך הגשת הבקשה לשיק],\">=\"&DATEVALUE(\"1 \"&סיכום_הוצאות_חודשיות[[#Headers],[דצמבר]]&\" \"&_שנה),אחר[תאריך הגשת הבקשה לשיק],\"<=\"&O$4)","v":{"v":0,"d":"₪ 0.00"}},{"$f":"SUM(סיכום_הוצאות_חודשיות[[#This Row],[ינואר]:[דצמבר]])","v":{"v":0,"d":"₪ 0.00"}}]
[null,11000,"צדקה",{"$f":"SUMIFS(הוצאות_מפורטות[סכום שיק],הוצאות_מפורטות[קוד בספר ראשי],סיכום_הוצאות_חודשיות[[#This Row],[קוד בספר ראשי]],הוצאות_מפורטות[תאריך חשבונית],\">=\"&D$3,הוצאות_מפורטות[תאריך חשבונית],\"<=\"&D$4)+SUMIFS(אחר[סכום שיק],אחר[קוד בספר ראשי],סיכום_הוצאות_חודשיות[[#This Row],[קוד בספר ראשי]],אחר[תאריך הגשת הבקשה לשיק],\">=\"&DATEVALUE(\"1 \"&סיכום_הוצאות_חודשיות[[#Headers],[ינואר]]&\" \"&_שנה),אחר[תאריך הגשת הבקשה לשיק],\"<=\"&D$4)","v":{"v":0,"d":"₪ 0.00"}},{"$f":"SUMIFS(הוצאות_מפורטות[סכום שיק],הוצאות_מפורטות[קוד בספר ראשי],סיכום_הוצאות_חודשיות[[#This Row],[קוד בספר ראשי]],הוצאות_מפורטות[תאריך חשבונית],\">=\"&E$3,הוצאות_מפורטות[תאריך חשבונית],\"<=\"&E$4)+SUMIFS(אחר[סכום שיק],אחר[קוד בספר ראשי],סיכום_הוצאות_חודשיות[[#This Row],[קוד בספר ראשי]],אחר[תאריך הגשת הבקשה לשיק],\">=\"&DATEVALUE(\"1 \"&סיכום_הוצאות_חודשיות[[#Headers],[פברואר]]&\" \"&_שנה),אחר[תאריך הגשת הבקשה לשיק],\"<=\"&E$4)","v":{"v":0,"d":"₪ 0.00"}},{"$f":"SUMIFS(הוצאות_מפורטות[סכום שיק],הוצאות_מפורטות[קוד בספר ראשי],סיכום_הוצאות_חודשיות[[#This Row],[קוד בספר ראשי]],הוצאות_מפורטות[תאריך חשבונית],\">=\"&F$3,הוצאות_מפורטות[תאריך חשבונית],\"<=\"&F$4)+SUMIFS(אחר[סכום שיק],אחר[קוד בספר ראשי],סיכום_הוצאות_חודשיות[[#This Row],[קוד בספר ראשי]],אחר[תאריך הגשת הבקשה לשיק],\">=\"&DATEVALUE(\"1 \"&סיכום_הוצאות_חודשיות[[#Headers],[מרץ]]&\" \"&_שנה),אחר[תאריך הגשת הבקשה לשיק],\"<=\"&F$4)","v":{"v":0,"d":"₪ 0.00"}},{"$f":"SUMIFS(הוצאות_מפורטות[סכום שיק],הוצאות_מפורטות[קוד בספר ראשי],סיכום_הוצאות_חודשיות[[#This Row],[קוד בספר ראשי]],הוצאות_מפורטות[תאריך חשבונית],\">=\"&G$3,הוצאות_מפורטות[תאריך חשבונית],\"<=\"&G$4)+SUMIFS(אחר[סכום שיק],אחר[קוד בספר ראשי],סיכום_הוצאות_חודשיות[[#This Row],[קוד בספר ראשי]],אחר[תאריך הגשת הבקשה לשיק],\">=\"&DATEVALUE(\"1 \"&סיכום_הוצאות_חודשיות[[#Headers],[אפר]]&\" \"&_שנה),אחר[תאריך הגשת הבקשה לשיק],\"<=\"&G$4)","v":{"v":0,"d":"₪ 0.00"}},{"$f":"SUMIFS(הוצאות_מפורטות[סכום שיק],הוצאות_מפורטות[קוד בספר ראשי],סיכום_הוצאות_חודשיות[[#This Row],[קוד בספר ראשי]],הוצאות_מפורטות[תאריך חשבונית],\">=\"&H$3,הוצאות_מפורטות[תאריך חשבונית],\"<=\"&H$4)+SUMIFS(אחר[סכום שיק],אחר[קוד בספר ראשי],סיכום_הוצאות_חודשיות[[#This Row],[קוד בספר ראשי]],אחר[תאריך הגשת הבקשה לשיק],\">=\"&DATEVALUE(\"1 \"&סיכום_הוצאות_חודשיות[[#Headers],[מאי]]&\" \"&_שנה),אחר[תאריך הגשת הבקשה לשיק],\"<=\"&H$4)","v":{"v":0,"d":"₪ 0.00"}},{"$f":"SUMIFS(הוצאות_מפורטות[סכום שיק],הוצאות_מפורטות[קוד בספר ראשי],סיכום_הוצאות_חודשיות[[#This Row],[קוד בספר ראשי]],הוצאות_מפורטות[תאריך חשבונית],\">=\"&I$3,הוצאות_מפורטות[תאריך חשבונית],\"<=\"&I$4)+SUMIFS(אחר[סכום שיק],אחר[קוד בספר ראשי],סיכום_הוצאות_חודשיות[[#This Row],[קוד בספר ראשי]],אחר[תאריך הגשת הבקשה לשיק],\">=\"&DATEVALUE(\"1 \"&סיכום_הוצאות_חודשיות[[#Headers],[יונ]]&\" \"&_שנה),אחר[תאריך הגשת הבקשה לשיק],\"<=\"&I$4)","v":{"v":0,"d":"₪ 0.00"}},{"$f":"SUMIFS(הוצאות_מפורטות[סכום שיק],הוצאות_מפורטות[קוד בספר ראשי],סיכום_הוצאות_חודשיות[[#This Row],[קוד בספר ראשי]],הוצאות_מפורטות[תאריך חשבונית],\">=\"&J$3,הוצאות_מפורטות[תאריך חשבונית],\"<=\"&J$4)+SUMIFS(אחר[סכום שיק],אחר[קוד בספר ראשי],סיכום_הוצאות_חודשיות[[#This Row],[קוד בספר ראשי]],אחר[תאריך הגשת הבקשה לשיק],\">=\"&DATEVALUE(\"1 \"&סיכום_הוצאות_חודשיות[[#Headers],[יולי]]&\" \"&_שנה),אחר[תאריך הגשת הבקשה לשיק],\"<=\"&J$4)","v":{"v":0,"d":"₪ 0.00"}},{"$f":"SUMIFS(הוצאות_מפורטות[סכום שיק],הוצאות_מפורטות[קוד בספר ראשי],סיכום_הוצאות_חודשיות[[#This Row],[קוד בספר ראשי]],הוצאות_מפורטות[תאריך חשבונית],\">=\"&K$3,הוצאות_מפורטות[תאריך חשבונית],\"<=\"&K$4)+SUMIFS(אחר[סכום שיק],אחר[קוד בספר ראשי],סיכום_הוצאות_חודשיות[[#This Row],[קוד בספר ראשי]],אחר[תאריך הגשת הבקשה לשיק],\">=\"&DATEVALUE(\"1 \"&סיכום_הוצאות_חודשיות[[#Headers],[אוגוסט]]&\" \"&_שנה),אחר[תאריך הגשת הבקשה לשיק],\"<=\"&K$4)","v":{"v":0,"d":"₪ 0.00"}},{"$f":"SUMIFS(הוצאות_מפורטות[סכום שיק],הוצאות_מפורטות[קוד בספר ראשי],סיכום_הוצאות_חודשיות[[#This Row],[קוד בספר ראשי]],הוצאות_מפורטות[תאריך חשבונית],\">=\"&L$3,הוצאות_מפורטות[תאריך חשבונית],\"<=\"&L$4)+SUMIFS(אחר[סכום שיק],אחר[קוד בספר ראשי],סיכום_הוצאות_חודשיות[[#This Row],[קוד בספר ראשי]],אחר[תאריך הגשת הבקשה לשיק],\">=\"&DATEVALUE(\"1 \"&סיכום_הוצאות_חודשיות[[#Headers],[ספטמבר]]&\" \"&_שנה),אחר[תאריך הגשת הבקשה לשיק],\"<=\"&L$4)","v":{"v":0,"d":"₪ 0.00"}},{"$f":"SUMIFS(הוצאות_מפורטות[סכום שיק],הוצאות_מפורטות[קוד בספר ראשי],סיכום_הוצאות_חודשיות[[#This Row],[קוד בספר ראשי]],הוצאות_מפורטות[תאריך חשבונית],\">=\"&M$3,הוצאות_מפורטות[תאריך חשבונית],\"<=\"&M$4)+SUMIFS(אחר[סכום שיק],אחר[קוד בספר ראשי],סיכום_הוצאות_חודשיות[[#This Row],[קוד בספר ראשי]],אחר[תאריך הגשת הבקשה לשיק],\">=\"&DATEVALUE(\"1 \"&סיכום_הוצאות_חודשיות[[#Headers],[אוקטובר]]&\" \"&_שנה),אחר[תאריך הגשת הבקשה לשיק],\"<=\"&M$4)","v":{"v":0,"d":"₪ 0.00"}},{"$f":"SUMIFS(הוצאות_מפורטות[סכום שיק],הוצאות_מפורטות[קוד בספר ראשי],סיכום_הוצאות_חודשיות[[#This Row],[קוד בספר ראשי]],הוצאות_מפורטות[תאריך חשבונית],\">=\"&N$3,הוצאות_מפורטות[תאריך חשבונית],\"<=\"&N$4)+SUMIFS(אחר[סכום שיק],אחר[קוד בספר ראשי],סיכום_הוצאות_חודשיות[[#This Row],[קוד בספר ראשי]],אחר[תאריך הגשת הבקשה לשיק],\">=\"&DATEVALUE(\"1 \"&סיכום_הוצאות_חודשיות[[#Headers],[נובמבר]]&\" \"&_שנה),אחר[תאריך הגשת הבקשה לשיק],\"<=\"&N$4)","v":{"v":0,"d":"₪ 0.00"}},{"$f":"SUMIFS(הוצאות_מפורטות[סכום שיק],הוצאות_מפורטות[קוד בספר ראשי],סיכום_הוצאות_חודשיות[[#This Row],[קוד בספר ראשי]],הוצאות_מפורטות[תאריך חשבונית],\">=\"&O$3,הוצאות_מפורטות[תאריך חשבונית],\"<=\"&O$4)+SUMIFS(אחר[סכום שיק],אחר[קוד בספר ראשי],סיכום_הוצאות_חודשיות[[#This Row],[קוד בספר ראשי]],אחר[תאריך הגשת הבקשה לשיק],\">=\"&DATEVALUE(\"1 \"&סיכום_הוצאות_חודשיות[[#Headers],[דצמבר]]&\" \"&_שנה),אחר[תאריך הגשת הבקשה לשיק],\"<=\"&O$4)","v":{"v":0,"d":"₪ 0.00"}},{"$f":"SUM(סיכום_הוצאות_חודשיות[[#This Row],[ינואר]:[דצמבר]])","v":{"v":0,"d":"₪ 0.00"}}]
[null,12000,"חסויות",{"$f":"SUMIFS(הוצאות_מפורטות[סכום שיק],הוצאות_מפורטות[קוד בספר ראשי],סיכום_הוצאות_חודשיות[[#This Row],[קוד בספר ראשי]],הוצאות_מפורטות[תאריך חשבונית],\">=\"&D$3,הוצאות_מפורטות[תאריך חשבונית],\"<=\"&D$4)+SUMIFS(אחר[סכום שיק],אחר[קוד בספר ראשי],סיכום_הוצאות_חודשיות[[#This Row],[קוד בספר ראשי]],אחר[תאריך הגשת הבקשה לשיק],\">=\"&DATEVALUE(\"1 \"&סיכום_הוצאות_חודשיות[[#Headers],[ינואר]]&\" \"&_שנה),אחר[תאריך הגשת הבקשה לשיק],\"<=\"&D$4)","v":{"v":0,"d":"₪ 0.00"}},{"$f":"SUMIFS(הוצאות_מפורטות[סכום שיק],הוצאות_מפורטות[קוד בספר ראשי],סיכום_הוצאות_חודשיות[[#This Row],[קוד בספר ראשי]],הוצאות_מפורטות[תאריך חשבונית],\">=\"&E$3,הוצאות_מפורטות[תאריך חשבונית],\"<=\"&E$4)+SUMIFS(אחר[סכום שיק],אחר[קוד בספר ראשי],סיכום_הוצאות_חודשיות[[#This Row],[קוד בספר ראשי]],אחר[תאריך הגשת הבקשה לשיק],\">=\"&DATEVALUE(\"1 \"&סיכום_הוצאות_חודשיות[[#Headers],[פברואר]]&\" \"&_שנה),אחר[תאריך הגשת הבקשה לשיק],\"<=\"&E$4)","v":{"v":0,"d":"₪ 0.00"}},{"$f":"SUMIFS(הוצאות_מפורטות[סכום שיק],הוצאות_מפורטות[קוד בספר ראשי],סיכום_הוצאות_חודשיות[[#This Row],[קוד בספר ראשי]],הוצאות_מפורטות[תאריך חשבונית],\">=\"&F$3,הוצאות_מפורטות[תאריך חשבונית],\"<=\"&F$4)+SUMIFS(אחר[סכום שיק],אחר[קוד בספר ראשי],סיכום_הוצאות_חודשיות[[#This Row],[קוד בספר ראשי]],אחר[תאריך הגשת הבקשה לשיק],\">=\"&DATEVALUE(\"1 \"&סיכום_הוצאות_חודשיות[[#Headers],[מרץ]]&\" \"&_שנה),אחר[תאריך הגשת הבקשה לשיק],\"<=\"&F$4)","v":{"v":0,"d":"₪ 0.00"}},{"$f":"SUMIFS(הוצאות_מפורטות[סכום שיק],הוצאות_מפורטות[קוד בספר ראשי],סיכום_הוצאות_חודשיות[[#This Row],[קוד בספר ראשי]],הוצאות_מפורטות[תאריך חשבונית],\">=\"&G$3,הוצאות_מפורטות[תאריך חשבונית],\"<=\"&G$4)+SUMIFS(אחר[סכום שיק],אחר[קוד בספר ראשי],סיכום_הוצאות_חודשיות[[#This Row],[קוד בספר ראשי]],אחר[תאריך הגשת הבקשה לשיק],\">=\"&DATEVALUE(\"1 \"&סיכום_הוצאות_חודשיות[[#Headers],[אפר]]&\" \"&_שנה),אחר[תאריך הגשת הבקשה לשיק],\"<=\"&G$4)","v":{"v":0,"d":"₪ 0.00"}},{"$f":"SUMIFS(הוצאות_מפורטות[סכום שיק],הוצאות_מפורטות[קוד בספר ראשי],סיכום_הוצאות_חודשיות[[#This Row],[קוד בספר ראשי]],הוצאות_מפורטות[תאריך חשבונית],\">=\"&H$3,הוצאות_מפורטות[תאריך חשבונית],\"<=\"&H$4)+SUMIFS(אחר[סכום שיק],אחר[קוד בספר ראשי],סיכום_הוצאות_חודשיות[[#This Row],[קוד בספר ראשי]],אחר[תאריך הגשת הבקשה לשיק],\">=\"&DATEVALUE(\"1 \"&סיכום_הוצאות_חודשיות[[#Headers],[מאי]]&\" \"&_שנה),אחר[תאריך הגשת הבקשה לשיק],\"<=\"&H$4)","v":{"v":0,"d":"₪ 0.00"}},{"$f":"SUMIFS(הוצאות_מפורטות[סכום שיק],הוצאות_מפורטות[קוד בספר ראשי],סיכום_הוצאות_חודשיות[[#This Row],[קוד בספר ראשי]],הוצאות_מפורטות[תאריך חשבונית],\">=\"&I$3,הוצאות_מפורטות[תאריך חשבונית],\"<=\"&I$4)+SUMIFS(אחר[סכום שיק],אחר[קוד בספר ראשי],סיכום_הוצאות_חודשיות[[#This Row],[קוד בספר ראשי]],אחר[תאריך הגשת הבקשה לשיק],\">=\"&DATEVALUE(\"1 \"&סיכום_הוצאות_חודשיות[[#Headers],[יונ]]&\" \"&_שנה),אחר[תאריך הגשת הבקשה לשיק],\"<=\"&I$4)","v":{"v":0,"d":"₪ 0.00"}},{"$f":"SUMIFS(הוצאות_מפורטות[סכום שיק],הוצאות_מפורטות[קוד בספר ראשי],סיכום_הוצאות_חודשיות[[#This Row],[קוד בספר ראשי]],הוצאות_מפורטות[תאריך חשבונית],\">=\"&J$3,הוצאות_מפורטות[תאריך חשבונית],\"<=\"&J$4)+SUMIFS(אחר[סכום שיק],אחר[קוד בספר ראשי],סיכום_הוצאות_חודשיות[[#This Row],[קוד בספר ראשי]],אחר[תאריך הגשת הבקשה לשיק],\">=\"&DATEVALUE(\"1 \"&סיכום_הוצאות_חודשיות[[#Headers],[יולי]]&\" \"&_שנה),אחר[תאריך הגשת הבקשה לשיק],\"<=\"&J$4)","v":{"v":0,"d":"₪ 0.00"}},{"$f":"SUMIFS(הוצאות_מפורטות[סכום שיק],הוצאות_מפורטות[קוד בספר ראשי],סיכום_הוצאות_חודשיות[[#This Row],[קוד בספר ראשי]],הוצאות_מפורטות[תאריך חשבונית],\">=\"&K$3,הוצאות_מפורטות[תאריך חשבונית],\"<=\"&K$4)+SUMIFS(אחר[סכום שיק],אחר[קוד בספר ראשי],סיכום_הוצאות_חודשיות[[#This Row],[קוד בספר ראשי]],אחר[תאריך הגשת הבקשה לשיק],\">=\"&DATEVALUE(\"1 \"&סיכום_הוצאות_חודשיות[[#Headers],[אוגוסט]]&\" \"&_שנה),אחר[תאריך הגשת הבקשה לשיק],\"<=\"&K$4)","v":{"v":0,"d":"₪ 0.00"}},{"$f":"SUMIFS(הוצאות_מפורטות[סכום שיק],הוצאות_מפורטות[קוד בספר ראשי],סיכום_הוצאות_חודשיות[[#This Row],[קוד בספר ראשי]],הוצאות_מפורטות[תאריך חשבונית],\">=\"&L$3,הוצאות_מפורטות[תאריך חשבונית],\"<=\"&L$4)+SUMIFS(אחר[סכום שיק],אחר[קוד בספר ראשי],סיכום_הוצאות_חודשיות[[#This Row],[קוד בספר ראשי]],אחר[תאריך הגשת הבקשה לשיק],\">=\"&DATEVALUE(\"1 \"&סיכום_הוצאות_חודשיות[[#Headers],[ספטמבר]]&\" \"&_שנה),אחר[תאריך הגשת הבקשה לשיק],\"<=\"&L$4)","v":{"v":0,"d":"₪ 0.00"}},{"$f":"SUMIFS(הוצאות_מפורטות[סכום שיק],הוצאות_מפורטות[קוד בספר ראשי],סיכום_הוצאות_חודשיות[[#This Row],[קוד בספר ראשי]],הוצאות_מפורטות[תאריך חשבונית],\">=\"&M$3,הוצאות_מפורטות[תאריך חשבונית],\"<=\"&M$4)+SUMIFS(אחר[סכום שיק],אחר[קוד בספר ראשי],סיכום_הוצאות_חודשיות[[#This Row],[קוד בספר ראשי]],אחר[תאריך הגשת הבקשה לשיק],\">=\"&DATEVALUE(\"1 \"&סיכום_הוצאות_חודשיות[[#Headers],[אוקטובר]]&\" \"&_שנה),אחר[תאריך הגשת הבקשה לשיק],\"<=\"&M$4)","v":{"v":0,"d":"₪ 0.00"}},{"$f":"SUMIFS(הוצאות_מפורטות[סכום שיק],הוצאות_מפורטות[קוד בספר ראשי],סיכום_הוצאות_חודשיות[[#This Row],[קוד בספר ראשי]],הוצאות_מפורטות[תאריך חשבונית],\">=\"&N$3,הוצאות_מפורטות[תאריך חשבונית],\"<=\"&N$4)+SUMIFS(אחר[סכום שיק],אחר[קוד בספר ראשי],סיכום_הוצאות_חודשיות[[#This Row],[קוד בספר ראשי]],אחר[תאריך הגשת הבקשה לשיק],\">=\"&DATEVALUE(\"1 \"&סיכום_הוצאות_חודשיות[[#Headers],[נובמבר]]&\" \"&_שנה),אחר[תאריך הגשת הבקשה לשיק],\"<=\"&N$4)","v":{"v":0,"d":"₪ 0.00"}},{"$f":"SUMIFS(הוצאות_מפורטות[סכום שיק],הוצאות_מפורטות[קוד בספר ראשי],סיכום_הוצאות_חודשיות[[#This Row],[קוד בספר ראשי]],הוצאות_מפורטות[תאריך חשבונית],\">=\"&O$3,הוצאות_מפורטות[תאריך חשבונית],\"<=\"&O$4)+SUMIFS(אחר[סכום שיק],אחר[קוד בספר ראשי],סיכום_הוצאות_חודשיות[[#This Row],[קוד בספר ראשי]],אחר[תאריך הגשת הבקשה לשיק],\">=\"&DATEVALUE(\"1 \"&סיכום_הוצאות_חודשיות[[#Headers],[דצמבר]]&\" \"&_שנה),אחר[תאריך הגשת הבקשה לשיק],\"<=\"&O$4)","v":{"v":0,"d":"₪ 0.00"}},{"$f":"SUM(סיכום_הוצאות_חודשיות[[#This Row],[ינואר]:[דצמבר]])","v":{"v":0,"d":"₪ 0.00"}}]
[null,"סה\"כ",null,{"$f":"SUBTOTAL(109,סיכום_הוצאות_חודשיות[ינואר])","v":{"v":0,"d":"₪ 0.00"}},{"$f":"SUBTOTAL(109,סיכום_הוצאות_חודשיות[פברואר])","v":{"v":0,"d":"₪ 0.00"}},{"$f":"SUBTOTAL(109,סיכום_הוצאות_חודשיות[מרץ])","v":{"v":0,"d":"₪ 0.00"}},{"$f":"SUBTOTAL(109,סיכום_הוצאות_חודשיות[אפר])","v":{"v":0,"d":"₪ 0.00"}},{"$f":"SUBTOTAL(109,סיכום_הוצאות_חודשיות[מאי])","v":{"v":0,"d":"₪ 0.00"}},{"$f":"SUBTOTAL(109,סיכום_הוצאות_חודשיות[יונ])","v":{"v":0,"d":"₪ 0.00"}},{"$f":"SUBTOTAL(109,סיכום_הוצאות_חודשיות[יולי])","v":{"v":0,"d":"₪ 0.00"}},{"$f":"SUBTOTAL(109,סיכום_הוצאות_חודשיות[אוגוסט])","v":{"v":0,"d":"₪ 0.00"}},{"$f":"SUBTOTAL(109,סיכום_הוצאות_חודשיות[ספטמבר])","v":{"v":0,"d":"₪ 0.00"}},{"$f":"SUBTOTAL(109,סיכום_הוצאות_חודשיות[אוקטובר])","v":{"v":0,"d":"₪ 0.00"}},{"$f":"SUBTOTAL(109,סיכום_הוצאות_חודשיות[נובמבר])","v":{"v":0,"d":"₪ 0.00"}},{"$f":"SUBTOTAL(109,סיכום_הוצאות_חודשיות[דצמבר])","v":{"v":0,"d":"₪ 0.00"}},{"$f":"SUBTOTAL(109,סיכום_הוצאות_חודשיות[סה\"כ])","v":{"v":0,"d":"₪ 0.00"}}]

{"sheet":"הוצאות מפורטות","index":2,"n_rows":6,"n_cols":10,"rows_kept":6,"merged":[[1,1,1,9],[2,1,2,5],[2,6,2,9]]}
[]
[null,"הוצאות מפורטות"]
[]
[null,"קוד בספר ראשי","תאריך חשבונית","מס' חשבונית","בקשה מאת","סכום שיק","מקבל התשלום","שימוש בשיק","שיטת הפצה","תאריך תיוק"]
[null,1000,"תאריך",100,"אורי איטון",{"v":750.75,"d":"₪ 750.75"},"Consolidated Messenger ","דיוור","דואר","תאריך"]
[null,7000,"תאריך",101,"דניאל מלמד",{"v":2500,"d":"₪ 2,500.00"},"A.‎ Datum Corporation ","2 מחשבים שולחניים","זיכוי","תאריך"]

{"sheet":"צדקה וחסויות","index":3,"n_rows":6,"n_cols":12,"rows_kept":6,"merged":[[1,1,1,11],[2,1,2,5],[2,6,2,11]]}
[]
[null,"צדקה וחסויות"]
[]
[null,"קוד בספר ראשי","תאריך הגשת הבקשה לשיק","בקשה מאת","סכום שיק","תרומה בשנה שעברה","מקבל התשלום","לשימוש עבור","אושר על-ידי","קטגוריה","שיטת הפצה","תאריך תיוק"]
[null,12000,"תאריך","לירז בן-מאיר",{"v":1000,"d":"₪ 1,000.00"},{"v":12,"d":"₪ 12.00"},"School of Fine Art ","מלגות","עדן הירש","אמנויות","שיק","תאריך"]
[null,11000,"תאריך","לירז בן-מאיר",{"v":2500,"d":"₪ 2,500.00"},{"v":0,"d":"₪ 0.00"},"Wingtip Toys ","קהילה","הדר כספית","קהילה","שיק","תאריך"]